{"text_format":"1","workbook":"xlsx","n_sheets":1,"sheets":["FMEA.Process"],"not_rendered":{"charts":0,"images":0,"macros":1,"external_links":0,"defined_names":124,"comments":1,"pivot_tables":0},"unopened":[],"bounds":{"document_bytes":16777216,"sheet_cells":100000,"rows_first":2000,"rows_last":500,"rows_between":2000,"halvings":0,"cell_chars":16384,"cell_head_chars":4096},"cells_cut":0,"cells_raw":0,"read":"whole","date_system":"1900"}

{"sheet":"FMEA.Process","index":0,"n_rows":201,"n_cols":28,"rows_kept":201,"cut":false,"hidden":false,"merged":[[6,0,6,4],[4,5,4,11],[5,6,5,7],[5,8,5,9],[6,5,6,9],[6,10,6,16],[0,0,3,5],[4,0,4,1],[5,0,5,1],[4,2,4,3],[5,2,5,3]]}
["Failure Modes and Effects Analysis\n(Process FMEA)"]
[]
[]
[]
["Project Name",null,null,null,"FMEA  Team:"]
["Y Variable",null,"[Enter Y Parameter]",null,"FMEA Date (Orig):  ",null,"Last Update:",null,null,null,"Revision:",0]
[null,null,null,null,null,"Current Process",null,null,null,null,"Action"]
["Process Step or Function:","Potential Failure Mode","Potential Effect(s) Of Failure:","SEV","Potential Cause(s) Of Failure:","Controls\n(Prevention)","OCC","Controls\n(Detection)","DET","RPN","Recommended Action(s) ","Responsibility","Actions Taken","SEV.F","OCC.F","DET.F","RPN.F",null,null,null,null,null,null,null,null,"Step/Input","Quartile Calculation:","Quartile List:"]
[null,null,null,null,null,null,null,null,null,null,null,null,null,null,null,null,{"$f":"IF(AND(NOT(ISBLANK(tblProcessFMEA[[#This Row],[SEV.F]])),NOT(ISBLANK(tblProcessFMEA[[#This Row],[OCC.F]])),NOT(ISBLANK(tblProcessFMEA[[#This Row],[DET.F]]))),tblProcessFMEA[[#This Row],[SEV.F]]*tblProcessFMEA[[#This Row],[OCC.F]]*tblProcessFMEA[[#This Row],[DET.F]],-1)","v":-1},null,null,null,null,null,null,null,null,"Sub Proc 2Sub X2"]
[null,null,null,null,null,null,null,null,null,null,null,null,null,null,null,null,{"$f":"IF(AND(NOT(ISBLANK(tblProcessFMEA[[#This Row],[SEV.F]])),NOT(ISBLANK(tblProcessFMEA[[#This Row],[OCC.F]])),NOT(ISBLANK(tblProcessFMEA[[#This Row],[DET.F]]))),tblProcessFMEA[[#This Row],[SEV.F]]*tblProcessFMEA[[#This Row],[OCC.F]]*tblProcessFMEA[[#This Row],[DET.F]],-1)","v":-1}]
[null,null,null,null,null,null,null,null,null,null,null,null,null,null,null,null,{"$f":"IF(AND(NOT(ISBLANK(tblProcessFMEA[[#This Row],[SEV.F]])),NOT(ISBLANK(tblProcessFMEA[[#This Row],[OCC.F]])),NOT(ISBLANK(tblProcessFMEA[[#This Row],[DET.F]]))),tblProcessFMEA[[#This Row],[SEV.F]]*tblProcessFMEA[[#This Row],[OCC.F]]*tblProcessFMEA[[#This Row],[DET.F]],-1)","v":-1}]
[null,null,null,null,null,null,null,null,null,null,null,null,null,null,null,null,{"$f":"IF(AND(NOT(ISBLANK(tblProcessFMEA[[#This Row],[SEV.F]])),NOT(ISBLANK(tblProcessFMEA[[#This Row],[OCC.F]])),NOT(ISBLANK(tblProcessFMEA[[#This Row],[DET.F]]))),tblProcessFMEA[[#This Row],[SEV.F]]*tblProcessFMEA[[#This Row],[OCC.F]]*tblProcessFMEA[[#This Row],[DET.F]],-1)","v":-1},null,null,null,null,null,null,null,null,"Sub Proc 2Sub X3"]
[null,null,null,null,null,null,null,null,null,null,null,null,null,null,null,null,{"$f":"IF(AND(NOT(ISBLANK(tblProcessFMEA[[#This Row],[SEV.F]])),NOT(ISBLANK(tblProcessFMEA[[#This Row],[OCC.F]])),NOT(ISBLANK(tblProcessFMEA[[#This Row],[DET.F]]))),tblProcessFMEA[[#This Row],[SEV.F]]*tblProcessFMEA[[#This Row],[OCC.F]]*tblProcessFMEA[[#This Row],[DET.F]],-1)","v":-1}]
[null,null,null,null,null,null,null,null,null,null,null,null,null,null,null,null,{"$f":"IF(AND(NOT(ISBLANK(tblProcessFMEA[[#This Row],[SEV.F]])),NOT(ISBLANK(tblProcessFMEA[[#This Row],[OCC.F]])),NOT(ISBLANK(tblProcessFMEA[[#This Row],[DET.F]]))),tblProcessFMEA[[#This Row],[SEV.F]]*tblProcessFMEA[[#This Row],[OCC.F]]*tblProcessFMEA[[#This Row],[DET.F]],-1)","v":-1}]
[null,null,null,null,null,null,null,null,null,null,null,null,null,null,null,null,{"$f":"IF(AND(NOT(ISBLANK(tblProcessFMEA[[#This Row],[SEV.F]])),NOT(ISBLANK(tblProcessFMEA[[#This Row],[OCC.F]])),NOT(ISBLANK(tblProcessFMEA[[#This Row],[DET.F]]))),tblProcessFMEA[[#This Row],[SEV.F]]*tblProcessFMEA[[#This Row],[OCC.F]]*tblProcessFMEA[[#This Row],[DET.F]],-1)","v":-1},null,null,null,null,null,null,null,null,"Sub Proc 1Sub X3"]
[null,null,null,null,null,null,null,null,null,null,null,null,null,null,null,null,{"$f":"IF(AND(NOT(ISBLANK(tblProcessFMEA[[#This Row],[SEV.F]])),NOT(ISBLANK(tblProcessFMEA[[#This Row],[OCC.F]])),NOT(ISBLANK(tblProcessFMEA[[#This Row],[DET.F]]))),tblProcessFMEA[[#This Row],[SEV.F]]*tblProcessFMEA[[#This Row],[OCC.F]]*tblProcessFMEA[[#This Row],[DET.F]],-1)","v":-1}]
[null,null,null,null,null,null,null,null,null,{"$f":"IF(AND(NOT(ISBLANK(tblProcessFMEA[[#This Row],[SEV]])),NOT(ISBLANK(tblProcessFMEA[[#This Row],[OCC]])),NOT(ISBLANK(tblProcessFMEA[[#This Row],[DET]]))),tblProcessFMEA[[#This Row],[SEV]]*tblProcessFMEA[[#This Row],[OCC]]*tblProcessFMEA[[#This Row],[DET]],-1)","v":-1},null,null,null,null,null,null,{"$f":"IF(AND(NOT(ISBLANK(tblProcessFMEA[[#This Row],[SEV.F]])),NOT(ISBLANK(tblProcessFMEA[[#This Row],[OCC.F]])),NOT(ISBLANK(tblProcessFMEA[[#This Row],[DET.F]]))),tblProcessFMEA[[#This Row],[SEV.F]]*tblProcessFMEA[[#This Row],[OCC.F]]*tblProcessFMEA[[#This Row],[DET.F]],-1)","v":-1}]
[null,null,null,null,null,null,null,null,null,{"$f":"IF(AND(NOT(ISBLANK(tblProcessFMEA[[#This Row],[SEV]])),NOT(ISBLANK(tblProcessFMEA[[#This Row],[OCC]])),NOT(ISBLANK(tblProcessFMEA[[#This Row],[DET]]))),tblProcessFMEA[[#This Row],[SEV]]*tblProcessFMEA[[#This Row],[OCC]]*tblProcessFMEA[[#This Row],[DET]],-1)","v":-1},null,null,null,null,null,null,{"$f":"IF(AND(NOT(ISBLANK(tblProcessFMEA[[#This Row],[SEV.F]])),NOT(ISBLANK(tblProcessFMEA[[#This Row],[OCC.F]])),NOT(ISBLANK(tblProcessFMEA[[#This Row],[DET.F]]))),tblProcessFMEA[[#This Row],[SEV.F]]*tblProcessFMEA[[#This Row],[OCC.F]]*tblProcessFMEA[[#This Row],[DET.F]],-1)","v":-1},null,null,null,null,null,null,null,null,"Sub Proc 3Sub X1"]
[null,null,null,null,null,null,null,null,null,{"$f":"IF(AND(NOT(ISBLANK(tblProcessFMEA[[#This Row],[SEV]])),NOT(ISBLANK(tblProcessFMEA[[#This Row],[OCC]])),NOT(ISBLANK(tblProcessFMEA[[#This Row],[DET]]))),tblProcessFMEA[[#This Row],[SEV]]*tblProcessFMEA[[#This Row],[OCC]]*tblProcessFMEA[[#This Row],[DET]],-1)","v":-1},null,null,null,null,null,null,{"$f":"IF(AND(NOT(ISBLANK(tblProcessFMEA[[#This Row],[SEV.F]])),NOT(ISBLANK(tblProcessFMEA[[#This Row],[OCC.F]])),NOT(ISBLANK(tblProcessFMEA[[#This Row],[DET.F]]))),tblProcessFMEA[[#This Row],[SEV.F]]*tblProcessFMEA[[#This Row],[OCC.F]]*tblProcessFMEA[[#This Row],[DET.F]],-1)","v":-1}]
[null,null,null,null,null,null,null,null,null,{"$f":"IF(AND(NOT(ISBLANK(tblProcessFMEA[[#This Row],[SEV]])),NOT(ISBLANK(tblProcessFMEA[[#This Row],[OCC]])),NOT(ISBLANK(tblProcessFMEA[[#This Row],[DET]]))),tblProcessFMEA[[#This Row],[SEV]]*tblProcessFMEA[[#This Row],[OCC]]*tblProcessFMEA[[#This Row],[DET]],-1)","v":-1},null,null,null,null,null,null,{"$f":"IF(AND(NOT(ISBLANK(tblProcessFMEA[[#This Row],[SEV.F]])),NOT(ISBLANK(tblProcessFMEA[[#This Row],[OCC.F]])),NOT(ISBLANK(tblProcessFMEA[[#This Row],[DET.F]]))),tblProcessFMEA[[#This Row],[SEV.F]]*tblProcessFMEA[[#This Row],[OCC.F]]*tblProcessFMEA[[#This Row],[DET.F]],-1)","v":-1}]
[null,null,null,null,null,null,null,null,null,{"$f":"IF(AND(NOT(ISBLANK(tblProcessFMEA[[#This Row],[SEV]])),NOT(ISBLANK(tblProcessFMEA[[#This Row],[OCC]])),NOT(ISBLANK(tblProcessFMEA[[#This Row],[DET]]))),tblProcessFMEA[[#This Row],[SEV]]*tblProcessFMEA[[#This Row],[OCC]]*tblProcessFMEA[[#This Row],[DET]],-1)","v":-1},null,null,null,null,null,null,{"$f":"IF(AND(NOT(ISBLANK(tblProcessFMEA[[#This Row],[SEV.F]])),NOT(ISBLANK(tblProcessFMEA[[#This Row],[OCC.F]])),NOT(ISBLANK(tblProcessFMEA[[#This Row],[DET.F]]))),tblProcessFMEA[[#This Row],[SEV.F]]*tblProcessFMEA[[#This Row],[OCC.F]]*tblProcessFMEA[[#This Row],[DET.F]],-1)","v":-1}]
[null,null,null,null,null,null,null,null,null,{"$f":"IF(AND(NOT(ISBLANK(tblProcessFMEA[[#This Row],[SEV]])),NOT(ISBLANK(tblProcessFMEA[[#This Row],[OCC]])),NOT(ISBLANK(tblProcessFMEA[[#This Row],[DET]]))),tblProcessFMEA[[#This Row],[SEV]]*tblProcessFMEA[[#This Row],[OCC]]*tblProcessFMEA[[#This Row],[DET]],-1)","v":-1},null,null,null,null,null,null,{"$f":"IF(AND(NOT(ISBLANK(tblProcessFMEA[[#This Row],[SEV.F]])),NOT(ISBLANK(tblProcessFMEA[[#This Row],[OCC.F]])),NOT(ISBLANK(tblProcessFMEA[[#This Row],[DET.F]]))),tblProcessFMEA[[#This Row],[SEV.F]]*tblProcessFMEA[[#This Row],[OCC.F]]*tblProcessFMEA[[#This Row],[DET.F]],-1)","v":-1}]
[null,null,null,null,null,null,null,null,null,{"$f":"IF(AND(NOT(ISBLANK(tblProcessFMEA[[#This Row],[SEV]])),NOT(ISBLANK(tblProcessFMEA[[#This Row],[OCC]])),NOT(ISBLANK(tblProcessFMEA[[#This Row],[DET]]))),tblProcessFMEA[[#This Row],[SEV]]*tblProcessFMEA[[#This Row],[OCC]]*tblProcessFMEA[[#This Row],[DET]],-1)","v":-1},null,null,null,null,null,null,{"$f":"IF(AND(NOT(ISBLANK(tblProcessFMEA[[#This Row],[SEV.F]])),NOT(ISBLANK(tblProcessFMEA[[#This Row],[OCC.F]])),NOT(ISBLANK(tblProcessFMEA[[#This Row],[DET.F]]))),tblProcessFMEA[[#This Row],[SEV.F]]*tblProcessFMEA[[#This Row],[OCC.F]]*tblProcessFMEA[[#This Row],[DET.F]],-1)","v":-1}]
[null,null,null,null,null,null,null,null,null,{"$f":"IF(AND(NOT(ISBLANK(tblProcessFMEA[[#This Row],[SEV]])),NOT(ISBLANK(tblProcessFMEA[[#This Row],[OCC]])),NOT(ISBLANK(tblProcessFMEA[[#This Row],[DET]]))),tblProcessFMEA[[#This Row],[SEV]]*tblProcessFMEA[[#This Row],[OCC]]*tblProcessFMEA[[#This Row],[DET]],-1)","v":-1},null,null,null,null,null,null,{"$f":"IF(AND(NOT(ISBLANK(tblProcessFMEA[[#This Row],[SEV.F]])),NOT(ISBLANK(tblProcessFMEA[[#This Row],[OCC.F]])),NOT(ISBLANK(tblProcessFMEA[[#This Row],[DET.F]]))),tblProcessFMEA[[#This Row],[SEV.F]]*tblProcessFMEA[[#This Row],[OCC.F]]*tblProcessFMEA[[#This Row],[DET.F]],-1)","v":-1}]
[null,null,null,null,null,null,null,null,null,{"$f":"IF(AND(NOT(ISBLANK(tblProcessFMEA[[#This Row],[SEV]])),NOT(ISBLANK(tblProcessFMEA[[#This Row],[OCC]])),NOT(ISBLANK(tblProcessFMEA[[#This Row],[DET]]))),tblProcessFMEA[[#This Row],[SEV]]*tblProcessFMEA[[#This Row],[OCC]]*tblProcessFMEA[[#This Row],[DET]],-1)","v":-1},null,null,null,null,null,null,{"$f":"IF(AND(NOT(ISBLANK(tblProcessFMEA[[#This Row],[SEV.F]])),NOT(ISBLANK(tblProcessFMEA[[#This Row],[OCC.F]])),NOT(ISBLANK(tblProcessFMEA[[#This Row],[DET.F]]))),tblProcessFMEA[[#This Row],[SEV.F]]*tblProcessFMEA[[#This Row],[OCC.F]]*tblProcessFMEA[[#This Row],[DET.F]],-1)","v":-1}]
[null,null,null,null,null,null,null,null,null,{"$f":"IF(AND(NOT(ISBLANK(tblProcessFMEA[[#This Row],[SEV]])),NOT(ISBLANK(tblProcessFMEA[[#This Row],[OCC]])),NOT(ISBLANK(tblProcessFMEA[[#This Row],[DET]]))),tblProcessFMEA[[#This Row],[SEV]]*tblProcessFMEA[[#This Row],[OCC]]*tblProcessFMEA[[#This Row],[DET]],-1)","v":-1},null,null,null,null,null,null,{"$f":"IF(AND(NOT(ISBLANK(tblProcessFMEA[[#This Row],[SEV.F]])),NOT(ISBLANK(tblProcessFMEA[[#This Row],[OCC.F]])),NOT(ISBLANK(tblProcessFMEA[[#This Row],[DET.F]]))),tblProcessFMEA[[#This Row],[SEV.F]]*tblProcessFMEA[[#This Row],[OCC.F]]*tblProcessFMEA[[#This Row],[DET.F]],-1)","v":-1}]
[null,null,null,null,null,null,null,null,null,{"$f":"IF(AND(NOT(ISBLANK(tblProcessFMEA[[#This Row],[SEV]])),NOT(ISBLANK(tblProcessFMEA[[#This Row],[OCC]])),NOT(ISBLANK(tblProcessFMEA[[#This Row],[DET]]))),tblProcessFMEA[[#This Row],[SEV]]*tblProcessFMEA[[#This Row],[OCC]]*tblProcessFMEA[[#This Row],[DET]],-1)","v":-1},null,null,null,null,null,null,{"$f":"IF(AND(NOT(ISBLANK(tblProcessFMEA[[#This Row],[SEV.F]])),NOT(ISBLANK(tblProcessFMEA[[#This Row],[OCC.F]])),NOT(ISBLANK(tblProcessFMEA[[#This Row],[DET.F]]))),tblProcessFMEA[[#This Row],[SEV.F]]*tblProcessFMEA[[#This Row],[OCC.F]]*tblProcessFMEA[[#This Row],[DET.F]],-1)","v":-1}]
[null,null,null,null,null,null,null,null,null,{"$f":"IF(AND(NOT(ISBLANK(tblProcessFMEA[[#This Row],[SEV]])),NOT(ISBLANK(tblProcessFMEA[[#This Row],[OCC]])),NOT(ISBLANK(tblProcessFMEA[[#This Row],[DET]]))),tblProcessFMEA[[#This Row],[SEV]]*tblProcessFMEA[[#This Row],[OCC]]*tblProcessFMEA[[#This Row],[DET]],-1)","v":-1},null,null,null,null,null,null,{"$f":"IF(AND(NOT(ISBLANK(tblProcessFMEA[[#This Row],[SEV.F]])),NOT(ISBLANK(tblProcessFMEA[[#This Row],[OCC.F]])),NOT(ISBLANK(tblProcessFMEA[[#This Row],[DET.F]]))),tblProcessFMEA[[#This Row],[SEV.F]]*tblProcessFMEA[[#This Row],[OCC.F]]*tblProcessFMEA[[#This Row],[DET.F]],-1)","v":-1}]
[null,null,null,null,null,null,null,null,null,{"$f":"IF(AND(NOT(ISBLANK(tblProcessFMEA[[#This Row],[SEV]])),NOT(ISBLANK(tblProcessFMEA[[#This Row],[OCC]])),NOT(ISBLANK(tblProcessFMEA[[#This Row],[DET]]))),tblProcessFMEA[[#This Row],[SEV]]*tblProcessFMEA[[#This Row],[OCC]]*tblProcessFMEA[[#This Row],[DET]],-1)","v":-1},null,null,null,null,null,null,{"$f":"IF(AND(NOT(ISBLANK(tblProcessFMEA[[#This Row],[SEV.F]])),NOT(ISBLANK(tblProcessFMEA[[#This Row],[OCC.F]])),NOT(ISBLANK(tblProcessFMEA[[#This Row],[DET.F]]))),tblProcessFMEA[[#This Row],[SEV.F]]*tblProcessFMEA[[#This Row],[OCC.F]]*tblProcessFMEA[[#This Row],[DET.F]],-1)","v":-1}]
[null,null,null,null,null,null,null,null,null,{"$f":"IF(AND(NOT(ISBLANK(tblProcessFMEA[[#This Row],[SEV]])),NOT(ISBLANK(tblProcessFMEA[[#This Row],[OCC]])),NOT(ISBLANK(tblProcessFMEA[[#This Row],[DET]]))),tblProcessFMEA[[#This Row],[SEV]]*tblProcessFMEA[[#This Row],[OCC]]*tblProcessFMEA[[#This Row],[DET]],-1)","v":-1},null,null,null,null,null,null,{"$f":"IF(AND(NOT(ISBLANK(tblProcessFMEA[[#This Row],[SEV.F]])),NOT(ISBLANK(tblProcessFMEA[[#This Row],[OCC.F]])),NOT(ISBLANK(tblProcessFMEA[[#This Row],[DET.F]]))),tblProcessFMEA[[#This Row],[SEV.F]]*tblProcessFMEA[[#This Row],[OCC.F]]*tblProcessFMEA[[#This Row],[DET.F]],-1)","v":-1}]
[null,null,null,null,null,null,null,null,null,{"$f":"IF(AND(NOT(ISBLANK(tblProcessFMEA[[#This Row],[SEV]])),NOT(ISBLANK(tblProcessFMEA[[#This Row],[OCC]])),NOT(ISBLANK(tblProcessFMEA[[#This Row],[DET]]))),tblProcessFMEA[[#This Row],[SEV]]*tblProcessFMEA[[#This Row],[OCC]]*tblProcessFMEA[[#This Row],[DET]],-1)","v":-1},null,null,null,null,null,null,{"$f":"IF(AND(NOT(ISBLANK(tblProcessFMEA[[#This Row],[SEV.F]])),NOT(ISBLANK(tblProcessFMEA[[#This Row],[OCC.F]])),NOT(ISBLANK(tblProcessFMEA[[#This Row],[DET.F]]))),tblProcessFMEA[[#This Row],[SEV.F]]*tblProcessFMEA[[#This Row],[OCC.F]]*tblProcessFMEA[[#This Row],[DET.F]],-1)","v":-1}]
[null,null,null,null,null,null,null,null,null,{"$f":"IF(AND(NOT(ISBLANK(tblProcessFMEA[[#This Row],[SEV]])),NOT(ISBLANK(tblProcessFMEA[[#This Row],[OCC]])),NOT(ISBLANK(tblProcessFMEA[[#This Row],[DET]]))),tblProcessFMEA[[#This Row],[SEV]]*tblProcessFMEA[[#This Row],[OCC]]*tblProcessFMEA[[#This Row],[DET]],-1)","v":-1},null,null,null,null,null,null,{"$f":"IF(AND(NOT(ISBLANK(tblProcessFMEA[[#This Row],[SEV.F]])),NOT(ISBLANK(tblProcessFMEA[[#This Row],[OCC.F]])),NOT(ISBLANK(tblProcessFMEA[[#This Row],[DET.F]]))),tblProcessFMEA[[#This Row],[SEV.F]]*tblProcessFMEA[[#This Row],[OCC.F]]*tblProcessFMEA[[#This Row],[DET.F]],-1)","v":-1}]
[null,null,null,null,null,null,null,null,null,{"$f":"IF(AND(NOT(ISBLANK(tblProcessFMEA[[#This Row],[SEV]])),NOT(ISBLANK(tblProcessFMEA[[#This Row],[OCC]])),NOT(ISBLANK(tblProcessFMEA[[#This Row],[DET]]))),tblProcessFMEA[[#This Row],[SEV]]*tblProcessFMEA[[#This Row],[OCC]]*tblProcessFMEA[[#This Row],[DET]],-1)","v":-1},null,null,null,null,null,null,{"$f":"IF(AND(NOT(ISBLANK(tblProcessFMEA[[#This Row],[SEV.F]])),NOT(ISBLANK(tblProcessFMEA[[#This Row],[OCC.F]])),NOT(ISBLANK(tblProcessFMEA[[#This Row],[DET.F]]))),tblProcessFMEA[[#This Row],[SEV.F]]*tblProcessFMEA[[#This Row],[OCC.F]]*tblProcessFMEA[[#This Row],[DET.F]],-1)","v":-1}]
[null,null,null,null,null,null,null,null,null,{"$f":"IF(AND(NOT(ISBLANK(tblProcessFMEA[[#This Row],[SEV]])),NOT(ISBLANK(tblProcessFMEA[[#This Row],[OCC]])),NOT(ISBLANK(tblProcessFMEA[[#This Row],[DET]]))),tblProcessFMEA[[#This Row],[SEV]]*tblProcessFMEA[[#This Row],[OCC]]*tblProcessFMEA[[#This Row],[DET]],-1)","v":-1},null,null,null,null,null,null,{"$f":"IF(AND(NOT(ISBLANK(tblProcessFMEA[[#This Row],[SEV.F]])),NOT(ISBLANK(tblProcessFMEA[[#This Row],[OCC.F]])),NOT(ISBLANK(tblProcessFMEA[[#This Row],[DET.F]]))),tblProcessFMEA[[#This Row],[SEV.F]]*tblProcessFMEA[[#This Row],[OCC.F]]*tblProcessFMEA[[#This Row],[DET.F]],-1)","v":-1}]
[null,null,null,null,null,null,null,null,null,{"$f":"IF(AND(NOT(ISBLANK(tblProcessFMEA[[#This Row],[SEV]])),NOT(ISBLANK(tblProcessFMEA[[#This Row],[OCC]])),NOT(ISBLANK(tblProcessFMEA[[#This Row],[DET]]))),tblProcessFMEA[[#This Row],[SEV]]*tblProcessFMEA[[#This Row],[OCC]]*tblProcessFMEA[[#This Row],[DET]],-1)","v":-1},null,null,null,null,null,null,{"$f":"IF(AND(NOT(ISBLANK(tblProcessFMEA[[#This Row],[SEV.F]])),NOT(ISBLANK(tblProcessFMEA[[#This Row],[OCC.F]])),NOT(ISBLANK(tblProcessFMEA[[#This Row],[DET.F]]))),tblProcessFMEA[[#This Row],[SEV.F]]*tblProcessFMEA[[#This Row],[OCC.F]]*tblProcessFMEA[[#This Row],[DET.F]],-1)","v":-1}]
[null,null,null,null,null,null,null,null,null,{"$f":"IF(AND(NOT(ISBLANK(tblProcessFMEA[[#This Row],[SEV]])),NOT(ISBLANK(tblProcessFMEA[[#This Row],[OCC]])),NOT(ISBLANK(tblProcessFMEA[[#This Row],[DET]]))),tblProcessFMEA[[#This Row],[SEV]]*tblProcessFMEA[[#This Row],[OCC]]*tblProcessFMEA[[#This Row],[DET]],-1)","v":-1},null,null,null,null,null,null,{"$f":"IF(AND(NOT(ISBLANK(tblProcessFMEA[[#This Row],[SEV.F]])),NOT(ISBLANK(tblProcessFMEA[[#This Row],[OCC.F]])),NOT(ISBLANK(tblProcessFMEA[[#This Row],[DET.F]]))),tblProcessFMEA[[#This Row],[SEV.F]]*tblProcessFMEA[[#This Row],[OCC.F]]*tblProcessFMEA[[#This Row],[DET.F]],-1)","v":-1}]
[null,null,null,null,null,null,null,null,null,{"$f":"IF(AND(NOT(ISBLANK(tblProcessFMEA[[#This Row],[SEV]])),NOT(ISBLANK(tblProcessFMEA[[#This Row],[OCC]])),NOT(ISBLANK(tblProcessFMEA[[#This Row],[DET]]))),tblProcessFMEA[[#This Row],[SEV]]*tblProcessFMEA[[#This Row],[OCC]]*tblProcessFMEA[[#This Row],[DET]],-1)","v":-1},null,null,null,null,null,null,{"$f":"IF(AND(NOT(ISBLANK(tblProcessFMEA[[#This Row],[SEV.F]])),NOT(ISBLANK(tblProcessFMEA[[#This Row],[OCC.F]])),NOT(ISBLANK(tblProcessFMEA[[#This Row],[DET.F]]))),tblProcessFMEA[[#This Row],[SEV.F]]*tblProcessFMEA[[#This Row],[OCC.F]]*tblProcessFMEA[[#This Row],[DET.F]],-1)","v":-1}]
[null,null,null,null,null,null,null,null,null,{"$f":"IF(AND(NOT(ISBLANK(tblProcessFMEA[[#This Row],[SEV]])),NOT(ISBLANK(tblProcessFMEA[[#This Row],[OCC]])),NOT(ISBLANK(tblProcessFMEA[[#This Row],[DET]]))),tblProcessFMEA[[#This Row],[SEV]]*tblProcessFMEA[[#This Row],[OCC]]*tblProcessFMEA[[#This Row],[DET]],-1)","v":-1},null,null,null,null,null,null,{"$f":"IF(AND(NOT(ISBLANK(tblProcessFMEA[[#This Row],[SEV.F]])),NOT(ISBLANK(tblProcessFMEA[[#This Row],[OCC.F]])),NOT(ISBLANK(tblProcessFMEA[[#This Row],[DET.F]]))),tblProcessFMEA[[#This Row],[SEV.F]]*tblProcessFMEA[[#This Row],[OCC.F]]*tblProcessFMEA[[#This Row],[DET.F]],-1)","v":-1}]
[null,null,null,null,null,null,null,null,null,{"$f":"IF(AND(NOT(ISBLANK(tblProcessFMEA[[#This Row],[SEV]])),NOT(ISBLANK(tblProcessFMEA[[#This Row],[OCC]])),NOT(ISBLANK(tblProcessFMEA[[#This Row],[DET]]))),tblProcessFMEA[[#This Row],[SEV]]*tblProcessFMEA[[#This Row],[OCC]]*tblProcessFMEA[[#This Row],[DET]],-1)","v":-1},null,null,null,null,null,null,{"$f":"IF(AND(NOT(ISBLANK(tblProcessFMEA[[#This Row],[SEV.F]])),NOT(ISBLANK(tblProcessFMEA[[#This Row],[OCC.F]])),NOT(ISBLANK(tblProcessFMEA[[#This Row],[DET.F]]))),tblProcessFMEA[[#This Row],[SEV.F]]*tblProcessFMEA[[#This Row],[OCC.F]]*tblProcessFMEA[[#This Row],[DET.F]],-1)","v":-1}]
[null,null,null,null,null,null,null,null,null,{"$f":"IF(AND(NOT(ISBLANK(tblProcessFMEA[[#This Row],[SEV]])),NOT(ISBLANK(tblProcessFMEA[[#This Row],[OCC]])),NOT(ISBLANK(tblProcessFMEA[[#This Row],[DET]]))),tblProcessFMEA[[#This Row],[SEV]]*tblProcessFMEA[[#This Row],[OCC]]*tblProcessFMEA[[#This Row],[DET]],-1)","v":-1},null,null,null,null,null,null,{"$f":"IF(AND(NOT(ISBLANK(tblProcessFMEA[[#This Row],[SEV.F]])),NOT(ISBLANK(tblProcessFMEA[[#This Row],[OCC.F]])),NOT(ISBLANK(tblProcessFMEA[[#This Row],[DET.F]]))),tblProcessFMEA[[#This Row],[SEV.F]]*tblProcessFMEA[[#This Row],[OCC.F]]*tblProcessFMEA[[#This Row],[DET.F]],-1)","v":-1}]
[null,null,null,null,null,null,null,null,null,{"$f":"IF(AND(NOT(ISBLANK(tblProcessFMEA[[#This Row],[SEV]])),NOT(ISBLANK(tblProcessFMEA[[#This Row],[OCC]])),NOT(ISBLANK(tblProcessFMEA[[#This Row],[DET]]))),tblProcessFMEA[[#This Row],[SEV]]*tblProcessFMEA[[#This Row],[OCC]]*tblProcessFMEA[[#This Row],[DET]],-1)","v":-1},null,null,null,null,null,null,{"$f":"IF(AND(NOT(ISBLANK(tblProcessFMEA[[#This Row],[SEV.F]])),NOT(ISBLANK(tblProcessFMEA[[#This Row],[OCC.F]])),NOT(ISBLANK(tblProcessFMEA[[#This Row],[DET.F]]))),tblProcessFMEA[[#This Row],[SEV.F]]*tblProcessFMEA[[#This Row],[OCC.F]]*tblProcessFMEA[[#This Row],[DET.F]],-1)","v":-1}]
[null,null,null,null,null,null,null,null,null,{"$f":"IF(AND(NOT(ISBLANK(tblProcessFMEA[[#This Row],[SEV]])),NOT(ISBLANK(tblProcessFMEA[[#This Row],[OCC]])),NOT(ISBLANK(tblProcessFMEA[[#This Row],[DET]]))),tblProcessFMEA[[#This Row],[SEV]]*tblProcessFMEA[[#This Row],[OCC]]*tblProcessFMEA[[#This Row],[DET]],-1)","v":-1},null,null,null,null,null,null,{"$f":"IF(AND(NOT(ISBLANK(tblProcessFMEA[[#This Row],[SEV.F]])),NOT(ISBLANK(tblProcessFMEA[[#This Row],[OCC.F]])),NOT(ISBLANK(tblProcessFMEA[[#This Row],[DET.F]]))),tblProcessFMEA[[#This Row],[SEV.F]]*tblProcessFMEA[[#This Row],[OCC.F]]*tblProcessFMEA[[#This Row],[DET.F]],-1)","v":-1}]
[null,null,null,null,null,null,null,null,null,{"$f":"IF(AND(NOT(ISBLANK(tblProcessFMEA[[#This Row],[SEV]])),NOT(ISBLANK(tblProcessFMEA[[#This Row],[OCC]])),NOT(ISBLANK(tblProcessFMEA[[#This Row],[DET]]))),tblProcessFMEA[[#This Row],[SEV]]*tblProcessFMEA[[#This Row],[OCC]]*tblProcessFMEA[[#This Row],[DET]],-1)","v":-1},null,null,null,null,null,null,{"$f":"IF(AND(NOT(ISBLANK(tblProcessFMEA[[#This Row],[SEV.F]])),NOT(ISBLANK(tblProcessFMEA[[#This Row],[OCC.F]])),NOT(ISBLANK(tblProcessFMEA[[#This Row],[DET.F]]))),tblProcessFMEA[[#This Row],[SEV.F]]*tblProcessFMEA[[#This Row],[OCC.F]]*tblProcessFMEA[[#This Row],[DET.F]],-1)","v":-1}]
[null,null,null,null,null,null,null,null,null,{"$f":"IF(AND(NOT(ISBLANK(tblProcessFMEA[[#This Row],[SEV]])),NOT(ISBLANK(tblProcessFMEA[[#This Row],[OCC]])),NOT(ISBLANK(tblProcessFMEA[[#This Row],[DET]]))),tblProcessFMEA[[#This Row],[SEV]]*tblProcessFMEA[[#This Row],[OCC]]*tblProcessFMEA[[#This Row],[DET]],-1)","v":-1},null,null,null,null,null,null,{"$f":"IF(AND(NOT(ISBLANK(tblProcessFMEA[[#This Row],[SEV.F]])),NOT(ISBLANK(tblProcessFMEA[[#This Row],[OCC.F]])),NOT(ISBLANK(tblProcessFMEA[[#This Row],[DET.F]]))),tblProcessFMEA[[#This Row],[SEV.F]]*tblProcessFMEA[[#This Row],[OCC.F]]*tblProcessFMEA[[#This Row],[DET.F]],-1)","v":-1}]
[null,null,null,null,null,null,null,null,null,{"$f":"IF(AND(NOT(ISBLANK(tblProcessFMEA[[#This Row],[SEV]])),NOT(ISBLANK(tblProcessFMEA[[#This Row],[OCC]])),NOT(ISBLANK(tblProcessFMEA[[#This Row],[DET]]))),tblProcessFMEA[[#This Row],[SEV]]*tblProcessFMEA[[#This Row],[OCC]]*tblProcessFMEA[[#This Row],[DET]],-1)","v":-1},null,null,null,null,null,null,{"$f":"IF(AND(NOT(ISBLANK(tblProcessFMEA[[#This Row],[SEV.F]])),NOT(ISBLANK(tblProcessFMEA[[#This Row],[OCC.F]])),NOT(ISBLANK(tblProcessFMEA[[#This Row],[DET.F]]))),tblProcessFMEA[[#This Row],[SEV.F]]*tblProcessFMEA[[#This Row],[OCC.F]]*tblProcessFMEA[[#This Row],[DET.F]],-1)","v":-1}]
[null,null,null,null,null,null,null,null,null,{"$f":"IF(AND(NOT(ISBLANK(tblProcessFMEA[[#This Row],[SEV]])),NOT(ISBLANK(tblProcessFMEA[[#This Row],[OCC]])),NOT(ISBLANK(tblProcessFMEA[[#This Row],[DET]]))),tblProcessFMEA[[#This Row],[SEV]]*tblProcessFMEA[[#This Row],[OCC]]*tblProcessFMEA[[#This Row],[DET]],-1)","v":-1},null,null,null,null,null,null,{"$f":"IF(AND(NOT(ISBLANK(tblProcessFMEA[[#This Row],[SEV.F]])),NOT(ISBLANK(tblProcessFMEA[[#This Row],[OCC.F]])),NOT(ISBLANK(tblProcessFMEA[[#This Row],[DET.F]]))),tblProcessFMEA[[#This Row],[SEV.F]]*tblProcessFMEA[[#This Row],[OCC.F]]*tblProcessFMEA[[#This Row],[DET.F]],-1)","v":-1}]
[null,null,null,null,null,null,null,null,null,{"$f":"IF(AND(NOT(ISBLANK(tblProcessFMEA[[#This Row],[SEV]])),NOT(ISBLANK(tblProcessFMEA[[#This Row],[OCC]])),NOT(ISBLANK(tblProcessFMEA[[#This Row],[DET]]))),tblProcessFMEA[[#This Row],[SEV]]*tblProcessFMEA[[#This Row],[OCC]]*tblProcessFMEA[[#This Row],[DET]],-1)","v":-1},null,null,null,null,null,null,{"$f":"IF(AND(NOT(ISBLANK(tblProcessFMEA[[#This Row],[SEV.F]])),NOT(ISBLANK(tblProcessFMEA[[#This Row],[OCC.F]])),NOT(ISBLANK(tblProcessFMEA[[#This Row],[DET.F]]))),tblProcessFMEA[[#This Row],[SEV.F]]*tblProcessFMEA[[#This Row],[OCC.F]]*tblProcessFMEA[[#This Row],[DET.F]],-1)","v":-1}]
[null,null,null,null,null,null,null,null,null,{"$f":"IF(AND(NOT(ISBLANK(tblProcessFMEA[[#This Row],[SEV]])),NOT(ISBLANK(tblProcessFMEA[[#This Row],[OCC]])),NOT(ISBLANK(tblProcessFMEA[[#This Row],[DET]]))),tblProcessFMEA[[#This Row],[SEV]]*tblProcessFMEA[[#This Row],[OCC]]*tblProcessFMEA[[#This Row],[DET]],-1)","v":-1},null,null,null,null,null,null,{"$f":"IF(AND(NOT(ISBLANK(tblProcessFMEA[[#This Row],[SEV.F]])),NOT(ISBLANK(tblProcessFMEA[[#This Row],[OCC.F]])),NOT(ISBLANK(tblProcessFMEA[[#This Row],[DET.F]]))),tblProcessFMEA[[#This Row],[SEV.F]]*tblProcessFMEA[[#This Row],[OCC.F]]*tblProcessFMEA[[#This Row],[DET.F]],-1)","v":-1}]
[null,null,null,null,null,null,null,null,null,{"$f":"IF(AND(NOT(ISBLANK(tblProcessFMEA[[#This Row],[SEV]])),NOT(ISBLANK(tblProcessFMEA[[#This Row],[OCC]])),NOT(ISBLANK(tblProcessFMEA[[#This Row],[DET]]))),tblProcessFMEA[[#This Row],[SEV]]*tblProcessFMEA[[#This Row],[OCC]]*tblProcessFMEA[[#This Row],[DET]],-1)","v":-1},null,null,null,null,null,null,{"$f":"IF(AND(NOT(ISBLANK(tblProcessFMEA[[#This Row],[SEV.F]])),NOT(ISBLANK(tblProcessFMEA[[#This Row],[OCC.F]])),NOT(ISBLANK(tblProcessFMEA[[#This Row],[DET.F]]))),tblProcessFMEA[[#This Row],[SEV.F]]*tblProcessFMEA[[#This Row],[OCC.F]]*tblProcessFMEA[[#This Row],[DET.F]],-1)","v":-1}]
[null,null,null,null,null,null,null,null,null,{"$f":"IF(AND(NOT(ISBLANK(tblProcessFMEA[[#This Row],[SEV]])),NOT(ISBLANK(tblProcessFMEA[[#This Row],[OCC]])),NOT(ISBLANK(tblProcessFMEA[[#This Row],[DET]]))),tblProcessFMEA[[#This Row],[SEV]]*tblProcessFMEA[[#This Row],[OCC]]*tblProcessFMEA[[#This Row],[DET]],-1)","v":-1},null,null,null,null,null,null,{"$f":"IF(AND(NOT(ISBLANK(tblProcessFMEA[[#This Row],[SEV.F]])),NOT(ISBLANK(tblProcessFMEA[[#This Row],[OCC.F]])),NOT(ISBLANK(tblProcessFMEA[[#This Row],[DET.F]]))),tblProcessFMEA[[#This Row],[SEV.F]]*tblProcessFMEA[[#This Row],[OCC.F]]*tblProcessFMEA[[#This Row],[DET.F]],-1)","v":-1}]
[null,null,null,null,null,null,null,null,null,{"$f":"IF(AND(NOT(ISBLANK(tblProcessFMEA[[#This Row],[SEV]])),NOT(ISBLANK(tblProcessFMEA[[#This Row],[OCC]])),NOT(ISBLANK(tblProcessFMEA[[#This Row],[DET]]))),tblProcessFMEA[[#This Row],[SEV]]*tblProcessFMEA[[#This Row],[OCC]]*tblProcessFMEA[[#This Row],[DET]],-1)","v":-1},null,null,null,null,null,null,{"$f":"IF(AND(NOT(ISBLANK(tblProcessFMEA[[#This Row],[SEV.F]])),NOT(ISBLANK(tblProcessFMEA[[#This Row],[OCC.F]])),NOT(ISBLANK(tblProcessFMEA[[#This Row],[DET.F]]))),tblProcessFMEA[[#This Row],[SEV.F]]*tblProcessFMEA[[#This Row],[OCC.F]]*tblProcessFMEA[[#This Row],[DET.F]],-1)","v":-1}]
[null,null,null,null,null,null,null,null,null,{"$f":"IF(AND(NOT(ISBLANK(tblProcessFMEA[[#This Row],[SEV]])),NOT(ISBLANK(tblProcessFMEA[[#This Row],[OCC]])),NOT(ISBLANK(tblProcessFMEA[[#This Row],[DET]]))),tblProcessFMEA[[#This Row],[SEV]]*tblProcessFMEA[[#This Row],[OCC]]*tblProcessFMEA[[#This Row],[DET]],-1)","v":-1},null,null,null,null,null,null,{"$f":"IF(AND(NOT(ISBLANK(tblProcessFMEA[[#This Row],[SEV.F]])),NOT(ISBLANK(tblProcessFMEA[[#This Row],[OCC.F]])),NOT(ISBLANK(tblProcessFMEA[[#This Row],[DET.F]]))),tblProcessFMEA[[#This Row],[SEV.F]]*tblProcessFMEA[[#This Row],[OCC.F]]*tblProcessFMEA[[#This Row],[DET.F]],-1)","v":-1}]
[null,null,null,null,null,null,null,null,null,{"$f":"IF(AND(NOT(ISBLANK(tblProcessFMEA[[#This Row],[SEV]])),NOT(ISBLANK(tblProcessFMEA[[#This Row],[OCC]])),NOT(ISBLANK(tblProcessFMEA[[#This Row],[DET]]))),tblProcessFMEA[[#This Row],[SEV]]*tblProcessFMEA[[#This Row],[OCC]]*tblProcessFMEA[[#This Row],[DET]],-1)","v":-1},null,null,null,null,null,null,{"$f":"IF(AND(NOT(ISBLANK(tblProcessFMEA[[#This Row],[SEV.F]])),NOT(ISBLANK(tblProcessFMEA[[#This Row],[OCC.F]])),NOT(ISBLANK(tblProcessFMEA[[#This Row],[DET.F]]))),tblProcessFMEA[[#This Row],[SEV.F]]*tblProcessFMEA[[#This Row],[OCC.F]]*tblProcessFMEA[[#This Row],[DET.F]],-1)","v":-1}]
[null,null,null,null,null,null,null,null,null,{"$f":"IF(AND(NOT(ISBLANK(tblProcessFMEA[[#This Row],[SEV]])),NOT(ISBLANK(tblProcessFMEA[[#This Row],[OCC]])),NOT(ISBLANK(tblProcessFMEA[[#This Row],[DET]]))),tblProcessFMEA[[#This Row],[SEV]]*tblProcessFMEA[[#This Row],[OCC]]*tblProcessFMEA[[#This Row],[DET]],-1)","v":-1},null,null,null,null,null,null,{"$f":"IF(AND(NOT(ISBLANK(tblProcessFMEA[[#This Row],[SEV.F]])),NOT(ISBLANK(tblProcessFMEA[[#This Row],[OCC.F]])),NOT(ISBLANK(tblProcessFMEA[[#This Row],[DET.F]]))),tblProcessFMEA[[#This Row],[SEV.F]]*tblProcessFMEA[[#This Row],[OCC.F]]*tblProcessFMEA[[#This Row],[DET.F]],-1)","v":-1}]
[null,null,null,null,null,null,null,null,null,{"$f":"IF(AND(NOT(ISBLANK(tblProcessFMEA[[#This Row],[SEV]])),NOT(ISBLANK(tblProcessFMEA[[#This Row],[OCC]])),NOT(ISBLANK(tblProcessFMEA[[#This Row],[DET]]))),tblProcessFMEA[[#This Row],[SEV]]*tblProcessFMEA[[#This Row],[OCC]]*tblProcessFMEA[[#This Row],[DET]],-1)","v":-1},null,null,null,null,null,null,{"$f":"IF(AND(NOT(ISBLANK(tblProcessFMEA[[#This Row],[SEV.F]])),NOT(ISBLANK(tblProcessFMEA[[#This Row],[OCC.F]])),NOT(ISBLANK(tblProcessFMEA[[#This Row],[DET.F]]))),tblProcessFMEA[[#This Row],[SEV.F]]*tblProcessFMEA[[#This Row],[OCC.F]]*tblProcessFMEA[[#This Row],[DET.F]],-1)","v":-1}]
[null,null,null,null,null,null,null,null,null,{"$f":"IF(AND(NOT(ISBLANK(tblProcessFMEA[[#This Row],[SEV]])),NOT(ISBLANK(tblProcessFMEA[[#This Row],[OCC]])),NOT(ISBLANK(tblProcessFMEA[[#This Row],[DET]]))),tblProcessFMEA[[#This Row],[SEV]]*tblProcessFMEA[[#This Row],[OCC]]*tblProcessFMEA[[#This Row],[DET]],-1)","v":-1},null,null,null,null,null,null,{"$f":"IF(AND(NOT(ISBLANK(tblProcessFMEA[[#This Row],[SEV.F]])),NOT(ISBLANK(tblProcessFMEA[[#This Row],[OCC.F]])),NOT(ISBLANK(tblProcessFMEA[[#This Row],[DET.F]]))),tblProcessFMEA[[#This Row],[SEV.F]]*tblProcessFMEA[[#This Row],[OCC.F]]*tblProcessFMEA[[#This Row],[DET.F]],-1)","v":-1}]
[null,null,null,null,null,null,null,null,null,{"$f":"IF(AND(NOT(ISBLANK(tblProcessFMEA[[#This Row],[SEV]])),NOT(ISBLANK(tblProcessFMEA[[#This Row],[OCC]])),NOT(ISBLANK(tblProcessFMEA[[#This Row],[DET]]))),tblProcessFMEA[[#This Row],[SEV]]*tblProcessFMEA[[#This Row],[OCC]]*tblProcessFMEA[[#This Row],[DET]],-1)","v":-1},null,null,null,null,null,null,{"$f":"IF(AND(NOT(ISBLANK(tblProcessFMEA[[#This Row],[SEV.F]])),NOT(ISBLANK(tblProcessFMEA[[#This Row],[OCC.F]])),NOT(ISBLANK(tblProcessFMEA[[#This Row],[DET.F]]))),tblProcessFMEA[[#This Row],[SEV.F]]*tblProcessFMEA[[#This Row],[OCC.F]]*tblProcessFMEA[[#This Row],[DET.F]],-1)","v":-1}]
[null,null,null,null,null,null,null,null,null,{"$f":"IF(AND(NOT(ISBLANK(tblProcessFMEA[[#This Row],[SEV]])),NOT(ISBLANK(tblProcessFMEA[[#This Row],[OCC]])),NOT(ISBLANK(tblProcessFMEA[[#This Row],[DET]]))),tblProcessFMEA[[#This Row],[SEV]]*tblProcessFMEA[[#This Row],[OCC]]*tblProcessFMEA[[#This Row],[DET]],-1)","v":-1},null,null,null,null,null,null,{"$f":"IF(AND(NOT(ISBLANK(tblProcessFMEA[[#This Row],[SEV.F]])),NOT(ISBLANK(tblProcessFMEA[[#This Row],[OCC.F]])),NOT(ISBLANK(tblProcessFMEA[[#This Row],[DET.F]]))),tblProcessFMEA[[#This Row],[SEV.F]]*tblProcessFMEA[[#This Row],[OCC.F]]*tblProcessFMEA[[#This Row],[DET.F]],-1)","v":-1}]
[null,null,null,null,null,null,null,null,null,{"$f":"IF(AND(NOT(ISBLANK(tblProcessFMEA[[#This Row],[SEV]])),NOT(ISBLANK(tblProcessFMEA[[#This Row],[OCC]])),NOT(ISBLANK(tblProcessFMEA[[#This Row],[DET]]))),tblProcessFMEA[[#This Row],[SEV]]*tblProcessFMEA[[#This Row],[OCC]]*tblProcessFMEA[[#This Row],[DET]],-1)","v":-1},null,null,null,null,null,null,{"$f":"IF(AND(NOT(ISBLANK(tblProcessFMEA[[#This Row],[SEV.F]])),NOT(ISBLANK(tblProcessFMEA[[#This Row],[OCC.F]])),NOT(ISBLANK(tblProcessFMEA[[#This Row],[DET.F]]))),tblProcessFMEA[[#This Row],[SEV.F]]*tblProcessFMEA[[#This Row],[OCC.F]]*tblProcessFMEA[[#This Row],[DET.F]],-1)","v":-1}]
[null,null,null,null,null,null,null,null,null,{"$f":"IF(AND(NOT(ISBLANK(tblProcessFMEA[[#This Row],[SEV]])),NOT(ISBLANK(tblProcessFMEA[[#This Row],[OCC]])),NOT(ISBLANK(tblProcessFMEA[[#This Row],[DET]]))),tblProcessFMEA[[#This Row],[SEV]]*tblProcessFMEA[[#This Row],[OCC]]*tblProcessFMEA[[#This Row],[DET]],-1)","v":-1},null,null,null,null,null,null,{"$f":"IF(AND(NOT(ISBLANK(tblProcessFMEA[[#This Row],[SEV.F]])),NOT(ISBLANK(tblProcessFMEA[[#This Row],[OCC.F]])),NOT(ISBLANK(tblProcessFMEA[[#This Row],[DET.F]]))),tblProcessFMEA[[#This Row],[SEV.F]]*tblProcessFMEA[[#This Row],[OCC.F]]*tblProcessFMEA[[#This Row],[DET.F]],-1)","v":-1}]
[null,null,null,null,null,null,null,null,null,{"$f":"IF(AND(NOT(ISBLANK(tblProcessFMEA[[#This Row],[SEV]])),NOT(ISBLANK(tblProcessFMEA[[#This Row],[OCC]])),NOT(ISBLANK(tblProcessFMEA[[#This Row],[DET]]))),tblProcessFMEA[[#This Row],[SEV]]*tblProcessFMEA[[#This Row],[OCC]]*tblProcessFMEA[[#This Row],[DET]],-1)","v":-1},null,null,null,null,null,null,{"$f":"IF(AND(NOT(ISBLANK(tblProcessFMEA[[#This Row],[SEV.F]])),NOT(ISBLANK(tblProcessFMEA[[#This Row],[OCC.F]])),NOT(ISBLANK(tblProcessFMEA[[#This Row],[DET.F]]))),tblProcessFMEA[[#This Row],[SEV.F]]*tblProcessFMEA[[#This Row],[OCC.F]]*tblProcessFMEA[[#This Row],[DET.F]],-1)","v":-1}]
[null,null,null,null,null,null,null,null,null,{"$f":"IF(AND(NOT(ISBLANK(tblProcessFMEA[[#This Row],[SEV]])),NOT(ISBLANK(tblProcessFMEA[[#This Row],[OCC]])),NOT(ISBLANK(tblProcessFMEA[[#This Row],[DET]]))),tblProcessFMEA[[#This Row],[SEV]]*tblProcessFMEA[[#This Row],[OCC]]*tblProcessFMEA[[#This Row],[DET]],-1)","v":-1},null,null,null,null,null,null,{"$f":"IF(AND(NOT(ISBLANK(tblProcessFMEA[[#This Row],[SEV.F]])),NOT(ISBLANK(tblProcessFMEA[[#This Row],[OCC.F]])),NOT(ISBLANK(tblProcessFMEA[[#This Row],[DET.F]]))),tblProcessFMEA[[#This Row],[SEV.F]]*tblProcessFMEA[[#This Row],[OCC.F]]*tblProcessFMEA[[#This Row],[DET.F]],-1)","v":-1}]
[null,null,null,null,null,null,null,null,null,{"$f":"IF(AND(NOT(ISBLANK(tblProcessFMEA[[#This Row],[SEV]])),NOT(ISBLANK(tblProcessFMEA[[#This Row],[OCC]])),NOT(ISBLANK(tblProcessFMEA[[#This Row],[DET]]))),tblProcessFMEA[[#This Row],[SEV]]*tblProcessFMEA[[#This Row],[OCC]]*tblProcessFMEA[[#This Row],[DET]],-1)","v":-1},null,null,null,null,null,null,{"$f":"IF(AND(NOT(ISBLANK(tblProcessFMEA[[#This Row],[SEV.F]])),NOT(ISBLANK(tblProcessFMEA[[#This Row],[OCC.F]])),NOT(ISBLANK(tblProcessFMEA[[#This Row],[DET.F]]))),tblProcessFMEA[[#This Row],[SEV.F]]*tblProcessFMEA[[#This Row],[OCC.F]]*tblProcessFMEA[[#This Row],[DET.F]],-1)","v":-1}]
[null,null,null,null,null,null,null,null,null,{"$f":"IF(AND(NOT(ISBLANK(tblProcessFMEA[[#This Row],[SEV]])),NOT(ISBLANK(tblProcessFMEA[[#This Row],[OCC]])),NOT(ISBLANK(tblProcessFMEA[[#This Row],[DET]]))),tblProcessFMEA[[#This Row],[SEV]]*tblProcessFMEA[[#This Row],[OCC]]*tblProcessFMEA[[#This Row],[DET]],-1)","v":-1},null,null,null,null,null,null,{"$f":"IF(AND(NOT(ISBLANK(tblProcessFMEA[[#This Row],[SEV.F]])),NOT(ISBLANK(tblProcessFMEA[[#This Row],[OCC.F]])),NOT(ISBLANK(tblProcessFMEA[[#This Row],[DET.F]]))),tblProcessFMEA[[#This Row],[SEV.F]]*tblProcessFMEA[[#This Row],[OCC.F]]*tblProcessFMEA[[#This Row],[DET.F]],-1)","v":-1}]
[null,null,null,null,null,null,null,null,null,{"$f":"IF(AND(NOT(ISBLANK(tblProcessFMEA[[#This Row],[SEV]])),NOT(ISBLANK(tblProcessFMEA[[#This Row],[OCC]])),NOT(ISBLANK(tblProcessFMEA[[#This Row],[DET]]))),tblProcessFMEA[[#This Row],[SEV]]*tblProcessFMEA[[#This Row],[OCC]]*tblProcessFMEA[[#This Row],[DET]],-1)","v":-1},null,null,null,null,null,null,{"$f":"IF(AND(NOT(ISBLANK(tblProcessFMEA[[#This Row],[SEV.F]])),NOT(ISBLANK(tblProcessFMEA[[#This Row],[OCC.F]])),NOT(ISBLANK(tblProcessFMEA[[#This Row],[DET.F]]))),tblProcessFMEA[[#This Row],[SEV.F]]*tblProcessFMEA[[#This Row],[OCC.F]]*tblProcessFMEA[[#This Row],[DET.F]],-1)","v":-1}]
[null,null,null,null,null,null,null,null,null,{"$f":"IF(AND(NOT(ISBLANK(tblProcessFMEA[[#This Row],[SEV]])),NOT(ISBLANK(tblProcessFMEA[[#This Row],[OCC]])),NOT(ISBLANK(tblProcessFMEA[[#This Row],[DET]]))),tblProcessFMEA[[#This Row],[SEV]]*tblProcessFMEA[[#This Row],[OCC]]*tblProcessFMEA[[#This Row],[DET]],-1)","v":-1},null,null,null,null,null,null,{"$f":"IF(AND(NOT(ISBLANK(tblProcessFMEA[[#This Row],[SEV.F]])),NOT(ISBLANK(tblProcessFMEA[[#This Row],[OCC.F]])),NOT(ISBLANK(tblProcessFMEA[[#This Row],[DET.F]]))),tblProcessFMEA[[#This Row],[SEV.F]]*tblProcessFMEA[[#This Row],[OCC.F]]*tblProcessFMEA[[#This Row],[DET.F]],-1)","v":-1}]
[null,null,null,null,null,null,null,null,null,{"$f":"IF(AND(NOT(ISBLANK(tblProcessFMEA[[#This Row],[SEV]])),NOT(ISBLANK(tblProcessFMEA[[#This Row],[OCC]])),NOT(ISBLANK(tblProcessFMEA[[#This Row],[DET]]))),tblProcessFMEA[[#This Row],[SEV]]*tblProcessFMEA[[#This Row],[OCC]]*tblProcessFMEA[[#This Row],[DET]],-1)","v":-1},null,null,null,null,null,null,{"$f":"IF(AND(NOT(ISBLANK(tblProcessFMEA[[#This Row],[SEV.F]])),NOT(ISBLANK(tblProcessFMEA[[#This Row],[OCC.F]])),NOT(ISBLANK(tblProcessFMEA[[#This Row],[DET.F]]))),tblProcessFMEA[[#This Row],[SEV.F]]*tblProcessFMEA[[#This Row],[OCC.F]]*tblProcessFMEA[[#This Row],[DET.F]],-1)","v":-1}]
[null,null,null,null,null,null,null,null,null,{"$f":"IF(AND(NOT(ISBLANK(tblProcessFMEA[[#This Row],[SEV]])),NOT(ISBLANK(tblProcessFMEA[[#This Row],[OCC]])),NOT(ISBLANK(tblProcessFMEA[[#This Row],[DET]]))),tblProcessFMEA[[#This Row],[SEV]]*tblProcessFMEA[[#This Row],[OCC]]*tblProcessFMEA[[#This Row],[DET]],-1)","v":-1},null,null,null,null,null,null,{"$f":"IF(AND(NOT(ISBLANK(tblProcessFMEA[[#This Row],[SEV.F]])),NOT(ISBLANK(tblProcessFMEA[[#This Row],[OCC.F]])),NOT(ISBLANK(tblProcessFMEA[[#This Row],[DET.F]]))),tblProcessFMEA[[#This Row],[SEV.F]]*tblProcessFMEA[[#This Row],[OCC.F]]*tblProcessFMEA[[#This Row],[DET.F]],-1)","v":-1}]
[null,null,null,null,null,null,null,null,null,{"$f":"IF(AND(NOT(ISBLANK(tblProcessFMEA[[#This Row],[SEV]])),NOT(ISBLANK(tblProcessFMEA[[#This Row],[OCC]])),NOT(ISBLANK(tblProcessFMEA[[#This Row],[DET]]))),tblProcessFMEA[[#This Row],[SEV]]*tblProcessFMEA[[#This Row],[OCC]]*tblProcessFMEA[[#This Row],[DET]],-1)","v":-1},null,null,null,null,null,null,{"$f":"IF(AND(NOT(ISBLANK(tblProcessFMEA[[#This Row],[SEV.F]])),NOT(ISBLANK(tblProcessFMEA[[#This Row],[OCC.F]])),NOT(ISBLANK(tblProcessFMEA[[#This Row],[DET.F]]))),tblProcessFMEA[[#This Row],[SEV.F]]*tblProcessFMEA[[#This Row],[OCC.F]]*tblProcessFMEA[[#This Row],[DET.F]],-1)","v":-1}]
[null,null,null,null,null,null,null,null,null,{"$f":"IF(AND(NOT(ISBLANK(tblProcessFMEA[[#This Row],[SEV]])),NOT(ISBLANK(tblProcessFMEA[[#This Row],[OCC]])),NOT(ISBLANK(tblProcessFMEA[[#This Row],[DET]]))),tblProcessFMEA[[#This Row],[SEV]]*tblProcessFMEA[[#This Row],[OCC]]*tblProcessFMEA[[#This Row],[DET]],-1)","v":-1},null,null,null,null,null,null,{"$f":"IF(AND(NOT(ISBLANK(tblProcessFMEA[[#This Row],[SEV.F]])),NOT(ISBLANK(tblProcessFMEA[[#This Row],[OCC.F]])),NOT(ISBLANK(tblProcessFMEA[[#This Row],[DET.F]]))),tblProcessFMEA[[#This Row],[SEV.F]]*tblProcessFMEA[[#This Row],[OCC.F]]*tblProcessFMEA[[#This Row],[DET.F]],-1)","v":-1}]
[null,null,null,null,null,null,null,null,null,{"$f":"IF(AND(NOT(ISBLANK(tblProcessFMEA[[#This Row],[SEV]])),NOT(ISBLANK(tblProcessFMEA[[#This Row],[OCC]])),NOT(ISBLANK(tblProcessFMEA[[#This Row],[DET]]))),tblProcessFMEA[[#This Row],[SEV]]*tblProcessFMEA[[#This Row],[OCC]]*tblProcessFMEA[[#This Row],[DET]],-1)","v":-1},null,null,null,null,null,null,{"$f":"IF(AND(NOT(ISBLANK(tblProcessFMEA[[#This Row],[SEV.F]])),NOT(ISBLANK(tblProcessFMEA[[#This Row],[OCC.F]])),NOT(ISBLANK(tblProcessFMEA[[#This Row],[DET.F]]))),tblProcessFMEA[[#This Row],[SEV.F]]*tblProcessFMEA[[#This Row],[OCC.F]]*tblProcessFMEA[[#This Row],[DET.F]],-1)","v":-1}]
[null,null,null,null,null,null,null,null,null,{"$f":"IF(AND(NOT(ISBLANK(tblProcessFMEA[[#This Row],[SEV]])),NOT(ISBLANK(tblProcessFMEA[[#This Row],[OCC]])),NOT(ISBLANK(tblProcessFMEA[[#This Row],[DET]]))),tblProcessFMEA[[#This Row],[SEV]]*tblProcessFMEA[[#This Row],[OCC]]*tblProcessFMEA[[#This Row],[DET]],-1)","v":-1},null,null,null,null,null,null,{"$f":"IF(AND(NOT(ISBLANK(tblProcessFMEA[[#This Row],[SEV.F]])),NOT(ISBLANK(tblProcessFMEA[[#This Row],[OCC.F]])),NOT(ISBLANK(tblProcessFMEA[[#This Row],[DET.F]]))),tblProcessFMEA[[#This Row],[SEV.F]]*tblProcessFMEA[[#This Row],[OCC.F]]*tblProcessFMEA[[#This Row],[DET.F]],-1)","v":-1}]
[null,null,null,null,null,null,null,null,null,{"$f":"IF(AND(NOT(ISBLANK(tblProcessFMEA[[#This Row],[SEV]])),NOT(ISBLANK(tblProcessFMEA[[#This Row],[OCC]])),NOT(ISBLANK(tblProcessFMEA[[#This Row],[DET]]))),tblProcessFMEA[[#This Row],[SEV]]*tblProcessFMEA[[#This Row],[OCC]]*tblProcessFMEA[[#This Row],[DET]],-1)","v":-1},null,null,null,null,null,null,{"$f":"IF(AND(NOT(ISBLANK(tblProcessFMEA[[#This Row],[SEV.F]])),NOT(ISBLANK(tblProcessFMEA[[#This Row],[OCC.F]])),NOT(ISBLANK(tblProcessFMEA[[#This Row],[DET.F]]))),tblProcessFMEA[[#This Row],[SEV.F]]*tblProcessFMEA[[#This Row],[OCC.F]]*tblProcessFMEA[[#This Row],[DET.F]],-1)","v":-1}]
[null,null,null,null,null,null,null,null,null,{"$f":"IF(AND(NOT(ISBLANK(tblProcessFMEA[[#This Row],[SEV]])),NOT(ISBLANK(tblProcessFMEA[[#This Row],[OCC]])),NOT(ISBLANK(tblProcessFMEA[[#This Row],[DET]]))),tblProcessFMEA[[#This Row],[SEV]]*tblProcessFMEA[[#This Row],[OCC]]*tblProcessFMEA[[#This Row],[DET]],-1)","v":-1},null,null,null,null,null,null,{"$f":"IF(AND(NOT(ISBLANK(tblProcessFMEA[[#This Row],[SEV.F]])),NOT(ISBLANK(tblProcessFMEA[[#This Row],[OCC.F]])),NOT(ISBLANK(tblProcessFMEA[[#This Row],[DET.F]]))),tblProcessFMEA[[#This Row],[SEV.F]]*tblProcessFMEA[[#This Row],[OCC.F]]*tblProcessFMEA[[#This Row],[DET.F]],-1)","v":-1}]
[null,null,null,null,null,null,null,null,null,{"$f":"IF(AND(NOT(ISBLANK(tblProcessFMEA[[#This Row],[SEV]])),NOT(ISBLANK(tblProcessFMEA[[#This Row],[OCC]])),NOT(ISBLANK(tblProcessFMEA[[#This Row],[DET]]))),tblProcessFMEA[[#This Row],[SEV]]*tblProcessFMEA[[#This Row],[OCC]]*tblProcessFMEA[[#This Row],[DET]],-1)","v":-1},null,null,null,null,null,null,{"$f":"IF(AND(NOT(ISBLANK(tblProcessFMEA[[#This Row],[SEV.F]])),NOT(ISBLANK(tblProcessFMEA[[#This Row],[OCC.F]])),NOT(ISBLANK(tblProcessFMEA[[#This Row],[DET.F]]))),tblProcessFMEA[[#This Row],[SEV.F]]*tblProcessFMEA[[#This Row],[OCC.F]]*tblProcessFMEA[[#This Row],[DET.F]],-1)","v":-1}]
[null,null,null,null,null,null,null,null,null,{"$f":"IF(AND(NOT(ISBLANK(tblProcessFMEA[[#This Row],[SEV]])),NOT(ISBLANK(tblProcessFMEA[[#This Row],[OCC]])),NOT(ISBLANK(tblProcessFMEA[[#This Row],[DET]]))),tblProcessFMEA[[#This Row],[SEV]]*tblProcessFMEA[[#This Row],[OCC]]*tblProcessFMEA[[#This Row],[DET]],-1)","v":-1},null,null,null,null,null,null,{"$f":"IF(AND(NOT(ISBLANK(tblProcessFMEA[[#This Row],[SEV.F]])),NOT(ISBLANK(tblProcessFMEA[[#This Row],[OCC.F]])),NOT(ISBLANK(tblProcessFMEA[[#This Row],[DET.F]]))),tblProcessFMEA[[#This Row],[SEV.F]]*tblProcessFMEA[[#This Row],[OCC.F]]*tblProcessFMEA[[#This Row],[DET.F]],-1)","v":-1}]
[null,null,null,null,null,null,null,null,null,{"$f":"IF(AND(NOT(ISBLANK(tblProcessFMEA[[#This Row],[SEV]])),NOT(ISBLANK(tblProcessFMEA[[#This Row],[OCC]])),NOT(ISBLANK(tblProcessFMEA[[#This Row],[DET]]))),tblProcessFMEA[[#This Row],[SEV]]*tblProcessFMEA[[#This Row],[OCC]]*tblProcessFMEA[[#This Row],[DET]],-1)","v":-1},null,null,null,null,null,null,{"$f":"IF(AND(NOT(ISBLANK(tblProcessFMEA[[#This Row],[SEV.F]])),NOT(ISBLANK(tblProcessFMEA[[#This Row],[OCC.F]])),NOT(ISBLANK(tblProcessFMEA[[#This Row],[DET.F]]))),tblProcessFMEA[[#This Row],[SEV.F]]*tblProcessFMEA[[#This Row],[OCC.F]]*tblProcessFMEA[[#This Row],[DET.F]],-1)","v":-1}]
[null,null,null,null,null,null,null,null,null,{"$f":"IF(AND(NOT(ISBLANK(tblProcessFMEA[[#This Row],[SEV]])),NOT(ISBLANK(tblProcessFMEA[[#This Row],[OCC]])),NOT(ISBLANK(tblProcessFMEA[[#This Row],[DET]]))),tblProcessFMEA[[#This Row],[SEV]]*tblProcessFMEA[[#This Row],[OCC]]*tblProcessFMEA[[#This Row],[DET]],-1)","v":-1},null,null,null,null,null,null,{"$f":"IF(AND(NOT(ISBLANK(tblProcessFMEA[[#This Row],[SEV.F]])),NOT(ISBLANK(tblProcessFMEA[[#This Row],[OCC.F]])),NOT(ISBLANK(tblProcessFMEA[[#This Row],[DET.F]]))),tblProcessFMEA[[#This Row],[SEV.F]]*tblProcessFMEA[[#This Row],[OCC.F]]*tblProcessFMEA[[#This Row],[DET.F]],-1)","v":-1}]
[null,null,null,null,null,null,null,null,null,{"$f":"IF(AND(NOT(ISBLANK(tblProcessFMEA[[#This Row],[SEV]])),NOT(ISBLANK(tblProcessFMEA[[#This Row],[OCC]])),NOT(ISBLANK(tblProcessFMEA[[#This Row],[DET]]))),tblProcessFMEA[[#This Row],[SEV]]*tblProcessFMEA[[#This Row],[OCC]]*tblProcessFMEA[[#This Row],[DET]],-1)","v":-1},null,null,null,null,null,null,{"$f":"IF(AND(NOT(ISBLANK(tblProcessFMEA[[#This Row],[SEV.F]])),NOT(ISBLANK(tblProcessFMEA[[#This Row],[OCC.F]])),NOT(ISBLANK(tblProcessFMEA[[#This Row],[DET.F]]))),tblProcessFMEA[[#This Row],[SEV.F]]*tblProcessFMEA[[#This Row],[OCC.F]]*tblProcessFMEA[[#This Row],[DET.F]],-1)","v":-1}]
[null,null,null,null,null,null,null,null,null,{"$f":"IF(AND(NOT(ISBLANK(tblProcessFMEA[[#This Row],[SEV]])),NOT(ISBLANK(tblProcessFMEA[[#This Row],[OCC]])),NOT(ISBLANK(tblProcessFMEA[[#This Row],[DET]]))),tblProcessFMEA[[#This Row],[SEV]]*tblProcessFMEA[[#This Row],[OCC]]*tblProcessFMEA[[#This Row],[DET]],-1)","v":-1},null,null,null,null,null,null,{"$f":"IF(AND(NOT(ISBLANK(tblProcessFMEA[[#This Row],[SEV.F]])),NOT(ISBLANK(tblProcessFMEA[[#This Row],[OCC.F]])),NOT(ISBLANK(tblProcessFMEA[[#This Row],[DET.F]]))),tblProcessFMEA[[#This Row],[SEV.F]]*tblProcessFMEA[[#This Row],[OCC.F]]*tblProcessFMEA[[#This Row],[DET.F]],-1)","v":-1}]
[null,null,null,null,null,null,null,null,null,{"$f":"IF(AND(NOT(ISBLANK(tblProcessFMEA[[#This Row],[SEV]])),NOT(ISBLANK(tblProcessFMEA[[#This Row],[OCC]])),NOT(ISBLANK(tblProcessFMEA[[#This Row],[DET]]))),tblProcessFMEA[[#This Row],[SEV]]*tblProcessFMEA[[#This Row],[OCC]]*tblProcessFMEA[[#This Row],[DET]],-1)","v":-1},null,null,null,null,null,null,{"$f":"IF(AND(NOT(ISBLANK(tblProcessFMEA[[#This Row],[SEV.F]])),NOT(ISBLANK(tblProcessFMEA[[#This Row],[OCC.F]])),NOT(ISBLANK(tblProcessFMEA[[#This Row],[DET.F]]))),tblProcessFMEA[[#This Row],[SEV.F]]*tblProcessFMEA[[#This Row],[OCC.F]]*tblProcessFMEA[[#This Row],[DET.F]],-1)","v":-1}]
[null,null,null,null,null,null,null,null,null,{"$f":"IF(AND(NOT(ISBLANK(tblProcessFMEA[[#This Row],[SEV]])),NOT(ISBLANK(tblProcessFMEA[[#This Row],[OCC]])),NOT(ISBLANK(tblProcessFMEA[[#This Row],[DET]]))),tblProcessFMEA[[#This Row],[SEV]]*tblProcessFMEA[[#This Row],[OCC]]*tblProcessFMEA[[#This Row],[DET]],-1)","v":-1},null,null,null,null,null,null,{"$f":"IF(AND(NOT(ISBLANK(tblProcessFMEA[[#This Row],[SEV.F]])),NOT(ISBLANK(tblProcessFMEA[[#This Row],[OCC.F]])),NOT(ISBLANK(tblProcessFMEA[[#This Row],[DET.F]]))),tblProcessFMEA[[#This Row],[SEV.F]]*tblProcessFMEA[[#This Row],[OCC.F]]*tblProcessFMEA[[#This Row],[DET.F]],-1)","v":-1}]
[null,null,null,null,null,null,null,null,null,{"$f":"IF(AND(NOT(ISBLANK(tblProcessFMEA[[#This Row],[SEV]])),NOT(ISBLANK(tblProcessFMEA[[#This Row],[OCC]])),NOT(ISBLANK(tblProcessFMEA[[#This Row],[DET]]))),tblProcessFMEA[[#This Row],[SEV]]*tblProcessFMEA[[#This Row],[OCC]]*tblProcessFMEA[[#This Row],[DET]],-1)","v":-1},null,null,null,null,null,null,{"$f":"IF(AND(NOT(ISBLANK(tblProcessFMEA[[#This Row],[SEV.F]])),NOT(ISBLANK(tblProcessFMEA[[#This Row],[OCC.F]])),NOT(ISBLANK(tblProcessFMEA[[#This Row],[DET.F]]))),tblProcessFMEA[[#This Row],[SEV.F]]*tblProcessFMEA[[#This Row],[OCC.F]]*tblProcessFMEA[[#This Row],[DET.F]],-1)","v":-1}]
[null,null,null,null,null,null,null,null,null,{"$f":"IF(AND(NOT(ISBLANK(tblProcessFMEA[[#This Row],[SEV]])),NOT(ISBLANK(tblProcessFMEA[[#This Row],[OCC]])),NOT(ISBLANK(tblProcessFMEA[[#This Row],[DET]]))),tblProcessFMEA[[#This Row],[SEV]]*tblProcessFMEA[[#This Row],[OCC]]*tblProcessFMEA[[#This Row],[DET]],-1)","v":-1},null,null,null,null,null,null,{"$f":"IF(AND(NOT(ISBLANK(tblProcessFMEA[[#This Row],[SEV.F]])),NOT(ISBLANK(tblProcessFMEA[[#This Row],[OCC.F]])),NOT(ISBLANK(tblProcessFMEA[[#This Row],[DET.F]]))),tblProcessFMEA[[#This Row],[SEV.F]]*tblProcessFMEA[[#This Row],[OCC.F]]*tblProcessFMEA[[#This Row],[DET.F]],-1)","v":-1}]
[null,null,null,null,null,null,null,null,null,{"$f":"IF(AND(NOT(ISBLANK(tblProcessFMEA[[#This Row],[SEV]])),NOT(ISBLANK(tblProcessFMEA[[#This Row],[OCC]])),NOT(ISBLANK(tblProcessFMEA[[#This Row],[DET]]))),tblProcessFMEA[[#This Row],[SEV]]*tblProcessFMEA[[#This Row],[OCC]]*tblProcessFMEA[[#This Row],[DET]],-1)","v":-1},null,null,null,null,null,null,{"$f":"IF(AND(NOT(ISBLANK(tblProcessFMEA[[#This Row],[SEV.F]])),NOT(ISBLANK(tblProcessFMEA[[#This Row],[OCC.F]])),NOT(ISBLANK(tblProcessFMEA[[#This Row],[DET.F]]))),tblProcessFMEA[[#This Row],[SEV.F]]*tblProcessFMEA[[#This Row],[OCC.F]]*tblProcessFMEA[[#This Row],[DET.F]],-1)","v":-1}]
[null,null,null,null,null,null,null,null,null,{"$f":"IF(AND(NOT(ISBLANK(tblProcessFMEA[[#This Row],[SEV]])),NOT(ISBLANK(tblProcessFMEA[[#This Row],[OCC]])),NOT(ISBLANK(tblProcessFMEA[[#This Row],[DET]]))),tblProcessFMEA[[#This Row],[SEV]]*tblProcessFMEA[[#This Row],[OCC]]*tblProcessFMEA[[#This Row],[DET]],-1)","v":-1},null,null,null,null,null,null,{"$f":"IF(AND(NOT(ISBLANK(tblProcessFMEA[[#This Row],[SEV.F]])),NOT(ISBLANK(tblProcessFMEA[[#This Row],[OCC.F]])),NOT(ISBLANK(tblProcessFMEA[[#This Row],[DET.F]]))),tblProcessFMEA[[#This Row],[SEV.F]]*tblProcessFMEA[[#This Row],[OCC.F]]*tblProcessFMEA[[#This Row],[DET.F]],-1)","v":-1}]
[null,null,null,null,null,null,null,null,null,{"$f":"IF(AND(NOT(ISBLANK(tblProcessFMEA[[#This Row],[SEV]])),NOT(ISBLANK(tblProcessFMEA[[#This Row],[OCC]])),NOT(ISBLANK(tblProcessFMEA[[#This Row],[DET]]))),tblProcessFMEA[[#This Row],[SEV]]*tblProcessFMEA[[#This Row],[OCC]]*tblProcessFMEA[[#This Row],[DET]],-1)","v":-1},null,null,null,null,null,null,{"$f":"IF(AND(NOT(ISBLANK(tblProcessFMEA[[#This Row],[SEV.F]])),NOT(ISBLANK(tblProcessFMEA[[#This Row],[OCC.F]])),NOT(ISBLANK(tblProcessFMEA[[#This Row],[DET.F]]))),tblProcessFMEA[[#This Row],[SEV.F]]*tblProcessFMEA[[#This Row],[OCC.F]]*tblProcessFMEA[[#This Row],[DET.F]],-1)","v":-1}]
[null,null,null,null,null,null,null,null,null,{"$f":"IF(AND(NOT(ISBLANK(tblProcessFMEA[[#This Row],[SEV]])),NOT(ISBLANK(tblProcessFMEA[[#This Row],[OCC]])),NOT(ISBLANK(tblProcessFMEA[[#This Row],[DET]]))),tblProcessFMEA[[#This Row],[SEV]]*tblProcessFMEA[[#This Row],[OCC]]*tblProcessFMEA[[#This Row],[DET]],-1)","v":-1},null,null,null,null,null,null,{"$f":"IF(AND(NOT(ISBLANK(tblProcessFMEA[[#This Row],[SEV.F]])),NOT(ISBLANK(tblProcessFMEA[[#This Row],[OCC.F]])),NOT(ISBLANK(tblProcessFMEA[[#This Row],[DET.F]]))),tblProcessFMEA[[#This Row],[SEV.F]]*tblProcessFMEA[[#This Row],[OCC.F]]*tblProcessFMEA[[#This Row],[DET.F]],-1)","v":-1}]
[null,null,null,null,null,null,null,null,null,{"$f":"IF(AND(NOT(ISBLANK(tblProcessFMEA[[#This Row],[SEV]])),NOT(ISBLANK(tblProcessFMEA[[#This Row],[OCC]])),NOT(ISBLANK(tblProcessFMEA[[#This Row],[DET]]))),tblProcessFMEA[[#This Row],[SEV]]*tblProcessFMEA[[#This Row],[OCC]]*tblProcessFMEA[[#This Row],[DET]],-1)","v":-1},null,null,null,null,null,null,{"$f":"IF(AND(NOT(ISBLANK(tblProcessFMEA[[#This Row],[SEV.F]])),NOT(ISBLANK(tblProcessFMEA[[#This Row],[OCC.F]])),NOT(ISBLANK(tblProcessFMEA[[#This Row],[DET.F]]))),tblProcessFMEA[[#This Row],[SEV.F]]*tblProcessFMEA[[#This Row],[OCC.F]]*tblProcessFMEA[[#This Row],[DET.F]],-1)","v":-1}]
[null,null,null,null,null,null,null,null,null,{"$f":"IF(AND(NOT(ISBLANK(tblProcessFMEA[[#This Row],[SEV]])),NOT(ISBLANK(tblProcessFMEA[[#This Row],[OCC]])),NOT(ISBLANK(tblProcessFMEA[[#This Row],[DET]]))),tblProcessFMEA[[#This Row],[SEV]]*tblProcessFMEA[[#This Row],[OCC]]*tblProcessFMEA[[#This Row],[DET]],-1)","v":-1},null,null,null,null,null,null,{"$f":"IF(AND(NOT(ISBLANK(tblProcessFMEA[[#This Row],[SEV.F]])),NOT(ISBLANK(tblProcessFMEA[[#This Row],[OCC.F]])),NOT(ISBLANK(tblProcessFMEA[[#This Row],[DET.F]]))),tblProcessFMEA[[#This Row],[SEV.F]]*tblProcessFMEA[[#This Row],[OCC.F]]*tblProcessFMEA[[#This Row],[DET.F]],-1)","v":-1}]
[null,null,null,null,null,null,null,null,null,{"$f":"IF(AND(NOT(ISBLANK(tblProcessFMEA[[#This Row],[SEV]])),NOT(ISBLANK(tblProcessFMEA[[#This Row],[OCC]])),NOT(ISBLANK(tblProcessFMEA[[#This Row],[DET]]))),tblProcessFMEA[[#This Row],[SEV]]*tblProcessFMEA[[#This Row],[OCC]]*tblProcessFMEA[[#This Row],[DET]],-1)","v":-1},null,null,null,null,null,null,{"$f":"IF(AND(NOT(ISBLANK(tblProcessFMEA[[#This Row],[SEV.F]])),NOT(ISBLANK(tblProcessFMEA[[#This Row],[OCC.F]])),NOT(ISBLANK(tblProcessFMEA[[#This Row],[DET.F]]))),tblProcessFMEA[[#This Row],[SEV.F]]*tblProcessFMEA[[#This Row],[OCC.F]]*tblProcessFMEA[[#This Row],[DET.F]],-1)","v":-1}]
[null,null,null,null,null,null,null,null,null,{"$f":"IF(AND(NOT(ISBLANK(tblProcessFMEA[[#This Row],[SEV]])),NOT(ISBLANK(tblProcessFMEA[[#This Row],[OCC]])),NOT(ISBLANK(tblProcessFMEA[[#This Row],[DET]]))),tblProcessFMEA[[#This Row],[SEV]]*tblProcessFMEA[[#This Row],[OCC]]*tblProcessFMEA[[#This Row],[DET]],-1)","v":-1},null,null,null,null,null,null,{"$f":"IF(AND(NOT(ISBLANK(tblProcessFMEA[[#This Row],[SEV.F]])),NOT(ISBLANK(tblProcessFMEA[[#This Row],[OCC.F]])),NOT(ISBLANK(tblProcessFMEA[[#This Row],[DET.F]]))),tblProcessFMEA[[#This Row],[SEV.F]]*tblProcessFMEA[[#This Row],[OCC.F]]*tblProcessFMEA[[#This Row],[DET.F]],-1)","v":-1}]
[null,null,null,null,null,null,null,null,null,{"$f":"IF(AND(NOT(ISBLANK(tblProcessFMEA[[#This Row],[SEV]])),NOT(ISBLANK(tblProcessFMEA[[#This Row],[OCC]])),NOT(ISBLANK(tblProcessFMEA[[#This Row],[DET]]))),tblProcessFMEA[[#This Row],[SEV]]*tblProcessFMEA[[#This Row],[OCC]]*tblProcessFMEA[[#This Row],[DET]],-1)","v":-1},null,null,null,null,null,null,{"$f":"IF(AND(NOT(ISBLANK(tblProcessFMEA[[#This Row],[SEV.F]])),NOT(ISBLANK(tblProcessFMEA[[#This Row],[OCC.F]])),NOT(ISBLANK(tblProcessFMEA[[#This Row],[DET.F]]))),tblProcessFMEA[[#This Row],[SEV.F]]*tblProcessFMEA[[#This Row],[OCC.F]]*tblProcessFMEA[[#This Row],[DET.F]],-1)","v":-1}]
[null,null,null,null,null,null,null,null,null,{"$f":"IF(AND(NOT(ISBLANK(tblProcessFMEA[[#This Row],[SEV]])),NOT(ISBLANK(tblProcessFMEA[[#This Row],[OCC]])),NOT(ISBLANK(tblProcessFMEA[[#This Row],[DET]]))),tblProcessFMEA[[#This Row],[SEV]]*tblProcessFMEA[[#This Row],[OCC]]*tblProcessFMEA[[#This Row],[DET]],-1)","v":-1},null,null,null,null,null,null,{"$f":"IF(AND(NOT(ISBLANK(tblProcessFMEA[[#This Row],[SEV.F]])),NOT(ISBLANK(tblProcessFMEA[[#This Row],[OCC.F]])),NOT(ISBLANK(tblProcessFMEA[[#This Row],[DET.F]]))),tblProcessFMEA[[#This Row],[SEV.F]]*tblProcessFMEA[[#This Row],[OCC.F]]*tblProcessFMEA[[#This Row],[DET.F]],-1)","v":-1}]
[null,null,null,null,null,null,null,null,null,{"$f":"IF(AND(NOT(ISBLANK(tblProcessFMEA[[#This Row],[SEV]])),NOT(ISBLANK(tblProcessFMEA[[#This Row],[OCC]])),NOT(ISBLANK(tblProcessFMEA[[#This Row],[DET]]))),tblProcessFMEA[[#This Row],[SEV]]*tblProcessFMEA[[#This Row],[OCC]]*tblProcessFMEA[[#This Row],[DET]],-1)","v":-1},null,null,null,null,null,null,{"$f":"IF(AND(NOT(ISBLANK(tblProcessFMEA[[#This Row],[SEV.F]])),NOT(ISBLANK(tblProcessFMEA[[#This Row],[OCC.F]])),NOT(ISBLANK(tblProcessFMEA[[#This Row],[DET.F]]))),tblProcessFMEA[[#This Row],[SEV.F]]*tblProcessFMEA[[#This Row],[OCC.F]]*tblProcessFMEA[[#This Row],[DET.F]],-1)","v":-1}]
[null,null,null,null,null,null,null,null,null,{"$f":"IF(AND(NOT(ISBLANK(tblProcessFMEA[[#This Row],[SEV]])),NOT(ISBLANK(tblProcessFMEA[[#This Row],[OCC]])),NOT(ISBLANK(tblProcessFMEA[[#This Row],[DET]]))),tblProcessFMEA[[#This Row],[SEV]]*tblProcessFMEA[[#This Row],[OCC]]*tblProcessFMEA[[#This Row],[DET]],-1)","v":-1},null,null,null,null,null,null,{"$f":"IF(AND(NOT(ISBLANK(tblProcessFMEA[[#This Row],[SEV.F]])),NOT(ISBLANK(tblProcessFMEA[[#This Row],[OCC.F]])),NOT(ISBLANK(tblProcessFMEA[[#This Row],[DET.F]]))),tblProcessFMEA[[#This Row],[SEV.F]]*tblProcessFMEA[[#This Row],[OCC.F]]*tblProcessFMEA[[#This Row],[DET.F]],-1)","v":-1}]
[null,null,null,null,null,null,null,null,null,{"$f":"IF(AND(NOT(ISBLANK(tblProcessFMEA[[#This Row],[SEV]])),NOT(ISBLANK(tblProcessFMEA[[#This Row],[OCC]])),NOT(ISBLANK(tblProcessFMEA[[#This Row],[DET]]))),tblProcessFMEA[[#This Row],[SEV]]*tblProcessFMEA[[#This Row],[OCC]]*tblProcessFMEA[[#This Row],[DET]],-1)","v":-1},null,null,null,null,null,null,{"$f":"IF(AND(NOT(ISBLANK(tblProcessFMEA[[#This Row],[SEV.F]])),NOT(ISBLANK(tblProcessFMEA[[#This Row],[OCC.F]])),NOT(ISBLANK(tblProcessFMEA[[#This Row],[DET.F]]))),tblProcessFMEA[[#This Row],[SEV.F]]*tblProcessFMEA[[#This Row],[OCC.F]]*tblProcessFMEA[[#This Row],[DET.F]],-1)","v":-1}]
[null,null,null,null,null,null,null,null,null,{"$f":"IF(AND(NOT(ISBLANK(tblProcessFMEA[[#This Row],[SEV]])),NOT(ISBLANK(tblProcessFMEA[[#This Row],[OCC]])),NOT(ISBLANK(tblProcessFMEA[[#This Row],[DET]]))),tblProcessFMEA[[#This Row],[SEV]]*tblProcessFMEA[[#This Row],[OCC]]*tblProcessFMEA[[#This Row],[DET]],-1)","v":-1},null,null,null,null,null,null,{"$f":"IF(AND(NOT(ISBLANK(tblProcessFMEA[[#This Row],[SEV.F]])),NOT(ISBLANK(tblProcessFMEA[[#This Row],[OCC.F]])),NOT(ISBLANK(tblProcessFMEA[[#This Row],[DET.F]]))),tblProcessFMEA[[#This Row],[SEV.F]]*tblProcessFMEA[[#This Row],[OCC.F]]*tblProcessFMEA[[#This Row],[DET.F]],-1)","v":-1}]
[null,null,null,null,null,null,null,null,null,{"$f":"IF(AND(NOT(ISBLANK(tblProcessFMEA[[#This Row],[SEV]])),NOT(ISBLANK(tblProcessFMEA[[#This Row],[OCC]])),NOT(ISBLANK(tblProcessFMEA[[#This Row],[DET]]))),tblProcessFMEA[[#This Row],[SEV]]*tblProcessFMEA[[#This Row],[OCC]]*tblProcessFMEA[[#This Row],[DET]],-1)","v":-1},null,null,null,null,null,null,{"$f":"IF(AND(NOT(ISBLANK(tblProcessFMEA[[#This Row],[SEV.F]])),NOT(ISBLANK(tblProcessFMEA[[#This Row],[OCC.F]])),NOT(ISBLANK(tblProcessFMEA[[#This Row],[DET.F]]))),tblProcessFMEA[[#This Row],[SEV.F]]*tblProcessFMEA[[#This Row],[OCC.F]]*tblProcessFMEA[[#This Row],[DET.F]],-1)","v":-1}]
[null,null,null,null,null,null,null,null,null,{"$f":"IF(AND(NOT(ISBLANK(tblProcessFMEA[[#This Row],[SEV]])),NOT(ISBLANK(tblProcessFMEA[[#This Row],[OCC]])),NOT(ISBLANK(tblProcessFMEA[[#This Row],[DET]]))),tblProcessFMEA[[#This Row],[SEV]]*tblProcessFMEA[[#This Row],[OCC]]*tblProcessFMEA[[#This Row],[DET]],-1)","v":-1},null,null,null,null,null,null,{"$f":"IF(AND(NOT(ISBLANK(tblProcessFMEA[[#This Row],[SEV.F]])),NOT(ISBLANK(tblProcessFMEA[[#This Row],[OCC.F]])),NOT(ISBLANK(tblProcessFMEA[[#This Row],[DET.F]]))),tblProcessFMEA[[#This Row],[SEV.F]]*tblProcessFMEA[[#This Row],[OCC.F]]*tblProcessFMEA[[#This Row],[DET.F]],-1)","v":-1}]
[null,null,null,null,null,null,null,null,null,{"$f":"IF(AND(NOT(ISBLANK(tblProcessFMEA[[#This Row],[SEV]])),NOT(ISBLANK(tblProcessFMEA[[#This Row],[OCC]])),NOT(ISBLANK(tblProcessFMEA[[#This Row],[DET]]))),tblProcessFMEA[[#This Row],[SEV]]*tblProcessFMEA[[#This Row],[OCC]]*tblProcessFMEA[[#This Row],[DET]],-1)","v":-1},null,null,null,null,null,null,{"$f":"IF(AND(NOT(ISBLANK(tblProcessFMEA[[#This Row],[SEV.F]])),NOT(ISBLANK(tblProcessFMEA[[#This Row],[OCC.F]])),NOT(ISBLANK(tblProcessFMEA[[#This Row],[DET.F]]))),tblProcessFMEA[[#This Row],[SEV.F]]*tblProcessFMEA[[#This Row],[OCC.F]]*tblProcessFMEA[[#This Row],[DET.F]],-1)","v":-1}]
[null,null,null,null,null,null,null,null,null,{"$f":"IF(AND(NOT(ISBLANK(tblProcessFMEA[[#This Row],[SEV]])),NOT(ISBLANK(tblProcessFMEA[[#This Row],[OCC]])),NOT(ISBLANK(tblProcessFMEA[[#This Row],[DET]]))),tblProcessFMEA[[#This Row],[SEV]]*tblProcessFMEA[[#This Row],[OCC]]*tblProcessFMEA[[#This Row],[DET]],-1)","v":-1},null,null,null,null,null,null,{"$f":"IF(AND(NOT(ISBLANK(tblProcessFMEA[[#This Row],[SEV.F]])),NOT(ISBLANK(tblProcessFMEA[[#This Row],[OCC.F]])),NOT(ISBLANK(tblProcessFMEA[[#This Row],[DET.F]]))),tblProcessFMEA[[#This Row],[SEV.F]]*tblProcessFMEA[[#This Row],[OCC.F]]*tblProcessFMEA[[#This Row],[DET.F]],-1)","v":-1}]
[null,null,null,null,null,null,null,null,null,{"$f":"IF(AND(NOT(ISBLANK(tblProcessFMEA[[#This Row],[SEV]])),NOT(ISBLANK(tblProcessFMEA[[#This Row],[OCC]])),NOT(ISBLANK(tblProcessFMEA[[#This Row],[DET]]))),tblProcessFMEA[[#This Row],[SEV]]*tblProcessFMEA[[#This Row],[OCC]]*tblProcessFMEA[[#This Row],[DET]],-1)","v":-1},null,null,null,null,null,null,{"$f":"IF(AND(NOT(ISBLANK(tblProcessFMEA[[#This Row],[SEV.F]])),NOT(ISBLANK(tblProcessFMEA[[#This Row],[OCC.F]])),NOT(ISBLANK(tblProcessFMEA[[#This Row],[DET.F]]))),tblProcessFMEA[[#This Row],[SEV.F]]*tblProcessFMEA[[#This Row],[OCC.F]]*tblProcessFMEA[[#This Row],[DET.F]],-1)","v":-1}]
[null,null,null,null,null,null,null,null,null,{"$f":"IF(AND(NOT(ISBLANK(tblProcessFMEA[[#This Row],[SEV]])),NOT(ISBLANK(tblProcessFMEA[[#This Row],[OCC]])),NOT(ISBLANK(tblProcessFMEA[[#This Row],[DET]]))),tblProcessFMEA[[#This Row],[SEV]]*tblProcessFMEA[[#This Row],[OCC]]*tblProcessFMEA[[#This Row],[DET]],-1)","v":-1},null,null,null,null,null,null,{"$f":"IF(AND(NOT(ISBLANK(tblProcessFMEA[[#This Row],[SEV.F]])),NOT(ISBLANK(tblProcessFMEA[[#This Row],[OCC.F]])),NOT(ISBLANK(tblProcessFMEA[[#This Row],[DET.F]]))),tblProcessFMEA[[#This Row],[SEV.F]]*tblProcessFMEA[[#This Row],[OCC.F]]*tblProcessFMEA[[#This Row],[DET.F]],-1)","v":-1}]
[null,null,null,null,null,null,null,null,null,{"$f":"IF(AND(NOT(ISBLANK(tblProcessFMEA[[#This Row],[SEV]])),NOT(ISBLANK(tblProcessFMEA[[#This Row],[OCC]])),NOT(ISBLANK(tblProcessFMEA[[#This Row],[DET]]))),tblProcessFMEA[[#This Row],[SEV]]*tblProcessFMEA[[#This Row],[OCC]]*tblProcessFMEA[[#This Row],[DET]],-1)","v":-1},null,null,null,null,null,null,{"$f":"IF(AND(NOT(ISBLANK(tblProcessFMEA[[#This Row],[SEV.F]])),NOT(ISBLANK(tblProcessFMEA[[#This Row],[OCC.F]])),NOT(ISBLANK(tblProcessFMEA[[#This Row],[DET.F]]))),tblProcessFMEA[[#This Row],[SEV.F]]*tblProcessFMEA[[#This Row],[OCC.F]]*tblProcessFMEA[[#This Row],[DET.F]],-1)","v":-1}]
[null,null,null,null,null,null,null,null,null,{"$f":"IF(AND(NOT(ISBLANK(tblProcessFMEA[[#This Row],[SEV]])),NOT(ISBLANK(tblProcessFMEA[[#This Row],[OCC]])),NOT(ISBLANK(tblProcessFMEA[[#This Row],[DET]]))),tblProcessFMEA[[#This Row],[SEV]]*tblProcessFMEA[[#This Row],[OCC]]*tblProcessFMEA[[#This Row],[DET]],-1)","v":-1},null,null,null,null,null,null,{"$f":"IF(AND(NOT(ISBLANK(tblProcessFMEA[[#This Row],[SEV.F]])),NOT(ISBLANK(tblProcessFMEA[[#This Row],[OCC.F]])),NOT(ISBLANK(tblProcessFMEA[[#This Row],[DET.F]]))),tblProcessFMEA[[#This Row],[SEV.F]]*tblProcessFMEA[[#This Row],[OCC.F]]*tblProcessFMEA[[#This Row],[DET.F]],-1)","v":-1}]
[null,null,null,null,null,null,null,null,null,{"$f":"IF(AND(NOT(ISBLANK(tblProcessFMEA[[#This Row],[SEV]])),NOT(ISBLANK(tblProcessFMEA[[#This Row],[OCC]])),NOT(ISBLANK(tblProcessFMEA[[#This Row],[DET]]))),tblProcessFMEA[[#This Row],[SEV]]*tblProcessFMEA[[#This Row],[OCC]]*tblProcessFMEA[[#This Row],[DET]],-1)","v":-1},null,null,null,null,null,null,{"$f":"IF(AND(NOT(ISBLANK(tblProcessFMEA[[#This Row],[SEV.F]])),NOT(ISBLANK(tblProcessFMEA[[#This Row],[OCC.F]])),NOT(ISBLANK(tblProcessFMEA[[#This Row],[DET.F]]))),tblProcessFMEA[[#This Row],[SEV.F]]*tblProcessFMEA[[#This Row],[OCC.F]]*tblProcessFMEA[[#This Row],[DET.F]],-1)","v":-1}]
[null,null,null,null,null,null,null,null,null,{"$f":"IF(AND(NOT(ISBLANK(tblProcessFMEA[[#This Row],[SEV]])),NOT(ISBLANK(tblProcessFMEA[[#This Row],[OCC]])),NOT(ISBLANK(tblProcessFMEA[[#This Row],[DET]]))),tblProcessFMEA[[#This Row],[SEV]]*tblProcessFMEA[[#This Row],[OCC]]*tblProcessFMEA[[#This Row],[DET]],-1)","v":-1},null,null,null,null,null,null,{"$f":"IF(AND(NOT(ISBLANK(tblProcessFMEA[[#This Row],[SEV.F]])),NOT(ISBLANK(tblProcessFMEA[[#This Row],[OCC.F]])),NOT(ISBLANK(tblProcessFMEA[[#This Row],[DET.F]]))),tblProcessFMEA[[#This Row],[SEV.F]]*tblProcessFMEA[[#This Row],[OCC.F]]*tblProcessFMEA[[#This Row],[DET.F]],-1)","v":-1}]
[null,null,null,null,null,null,null,null,null,{"$f":"IF(AND(NOT(ISBLANK(tblProcessFMEA[[#This Row],[SEV]])),NOT(ISBLANK(tblProcessFMEA[[#This Row],[OCC]])),NOT(ISBLANK(tblProcessFMEA[[#This Row],[DET]]))),tblProcessFMEA[[#This Row],[SEV]]*tblProcessFMEA[[#This Row],[OCC]]*tblProcessFMEA[[#This Row],[DET]],-1)","v":-1},null,null,null,null,null,null,{"$f":"IF(AND(NOT(ISBLANK(tblProcessFMEA[[#This Row],[SEV.F]])),NOT(ISBLANK(tblProcessFMEA[[#This Row],[OCC.F]])),NOT(ISBLANK(tblProcessFMEA[[#This Row],[DET.F]]))),tblProcessFMEA[[#This Row],[SEV.F]]*tblProcessFMEA[[#This Row],[OCC.F]]*tblProcessFMEA[[#This Row],[DET.F]],-1)","v":-1}]
[null,null,null,null,null,null,null,null,null,{"$f":"IF(AND(NOT(ISBLANK(tblProcessFMEA[[#This Row],[SEV]])),NOT(ISBLANK(tblProcessFMEA[[#This Row],[OCC]])),NOT(ISBLANK(tblProcessFMEA[[#This Row],[DET]]))),tblProcessFMEA[[#This Row],[SEV]]*tblProcessFMEA[[#This Row],[OCC]]*tblProcessFMEA[[#This Row],[DET]],-1)","v":-1},null,null,null,null,null,null,{"$f":"IF(AND(NOT(ISBLANK(tblProcessFMEA[[#This Row],[SEV.F]])),NOT(ISBLANK(tblProcessFMEA[[#This Row],[OCC.F]])),NOT(ISBLANK(tblProcessFMEA[[#This Row],[DET.F]]))),tblProcessFMEA[[#This Row],[SEV.F]]*tblProcessFMEA[[#This Row],[OCC.F]]*tblProcessFMEA[[#This Row],[DET.F]],-1)","v":-1}]
[null,null,null,null,null,null,null,null,null,{"$f":"IF(AND(NOT(ISBLANK(tblProcessFMEA[[#This Row],[SEV]])),NOT(ISBLANK(tblProcessFMEA[[#This Row],[OCC]])),NOT(ISBLANK(tblProcessFMEA[[#This Row],[DET]]))),tblProcessFMEA[[#This Row],[SEV]]*tblProcessFMEA[[#This Row],[OCC]]*tblProcessFMEA[[#This Row],[DET]],-1)","v":-1},null,null,null,null,null,null,{"$f":"IF(AND(NOT(ISBLANK(tblProcessFMEA[[#This Row],[SEV.F]])),NOT(ISBLANK(tblProcessFMEA[[#This Row],[OCC.F]])),NOT(ISBLANK(tblProcessFMEA[[#This Row],[DET.F]]))),tblProcessFMEA[[#This Row],[SEV.F]]*tblProcessFMEA[[#This Row],[OCC.F]]*tblProcessFMEA[[#This Row],[DET.F]],-1)","v":-1}]
[null,null,null,null,null,null,null,null,null,{"$f":"IF(AND(NOT(ISBLANK(tblProcessFMEA[[#This Row],[SEV]])),NOT(ISBLANK(tblProcessFMEA[[#This Row],[OCC]])),NOT(ISBLANK(tblProcessFMEA[[#This Row],[DET]]))),tblProcessFMEA[[#This Row],[SEV]]*tblProcessFMEA[[#This Row],[OCC]]*tblProcessFMEA[[#This Row],[DET]],-1)","v":-1},null,null,null,null,null,null,{"$f":"IF(AND(NOT(ISBLANK(tblProcessFMEA[[#This Row],[SEV.F]])),NOT(ISBLANK(tblProcessFMEA[[#This Row],[OCC.F]])),NOT(ISBLANK(tblProcessFMEA[[#This Row],[DET.F]]))),tblProcessFMEA[[#This Row],[SEV.F]]*tblProcessFMEA[[#This Row],[OCC.F]]*tblProcessFMEA[[#This Row],[DET.F]],-1)","v":-1}]
[null,null,null,null,null,null,null,null,null,{"$f":"IF(AND(NOT(ISBLANK(tblProcessFMEA[[#This Row],[SEV]])),NOT(ISBLANK(tblProcessFMEA[[#This Row],[OCC]])),NOT(ISBLANK(tblProcessFMEA[[#This Row],[DET]]))),tblProcessFMEA[[#This Row],[SEV]]*tblProcessFMEA[[#This Row],[OCC]]*tblProcessFMEA[[#This Row],[DET]],-1)","v":-1},null,null,null,null,null,null,{"$f":"IF(AND(NOT(ISBLANK(tblProcessFMEA[[#This Row],[SEV.F]])),NOT(ISBLANK(tblProcessFMEA[[#This Row],[OCC.F]])),NOT(ISBLANK(tblProcessFMEA[[#This Row],[DET.F]]))),tblProcessFMEA[[#This Row],[SEV.F]]*tblProcessFMEA[[#This Row],[OCC.F]]*tblProcessFMEA[[#This Row],[DET.F]],-1)","v":-1}]
[null,null,null,null,null,null,null,null,null,{"$f":"IF(AND(NOT(ISBLANK(tblProcessFMEA[[#This Row],[SEV]])),NOT(ISBLANK(tblProcessFMEA[[#This Row],[OCC]])),NOT(ISBLANK(tblProcessFMEA[[#This Row],[DET]]))),tblProcessFMEA[[#This Row],[SEV]]*tblProcessFMEA[[#This Row],[OCC]]*tblProcessFMEA[[#This Row],[DET]],-1)","v":-1},null,null,null,null,null,null,{"$f":"IF(AND(NOT(ISBLANK(tblProcessFMEA[[#This Row],[SEV.F]])),NOT(ISBLANK(tblProcessFMEA[[#This Row],[OCC.F]])),NOT(ISBLANK(tblProcessFMEA[[#This Row],[DET.F]]))),tblProcessFMEA[[#This Row],[SEV.F]]*tblProcessFMEA[[#This Row],[OCC.F]]*tblProcessFMEA[[#This Row],[DET.F]],-1)","v":-1}]
[null,null,null,null,null,null,null,null,null,{"$f":"IF(AND(NOT(ISBLANK(tblProcessFMEA[[#This Row],[SEV]])),NOT(ISBLANK(tblProcessFMEA[[#This Row],[OCC]])),NOT(ISBLANK(tblProcessFMEA[[#This Row],[DET]]))),tblProcessFMEA[[#This Row],[SEV]]*tblProcessFMEA[[#This Row],[OCC]]*tblProcessFMEA[[#This Row],[DET]],-1)","v":-1},null,null,null,null,null,null,{"$f":"IF(AND(NOT(ISBLANK(tblProcessFMEA[[#This Row],[SEV.F]])),NOT(ISBLANK(tblProcessFMEA[[#This Row],[OCC.F]])),NOT(ISBLANK(tblProcessFMEA[[#This Row],[DET.F]]))),tblProcessFMEA[[#This Row],[SEV.F]]*tblProcessFMEA[[#This Row],[OCC.F]]*tblProcessFMEA[[#This Row],[DET.F]],-1)","v":-1}]
[null,null,null,null,null,null,null,null,null,{"$f":"IF(AND(NOT(ISBLANK(tblProcessFMEA[[#This Row],[SEV]])),NOT(ISBLANK(tblProcessFMEA[[#This Row],[OCC]])),NOT(ISBLANK(tblProcessFMEA[[#This Row],[DET]]))),tblProcessFMEA[[#This Row],[SEV]]*tblProcessFMEA[[#This Row],[OCC]]*tblProcessFMEA[[#This Row],[DET]],-1)","v":-1},null,null,null,null,null,null,{"$f":"IF(AND(NOT(ISBLANK(tblProcessFMEA[[#This Row],[SEV.F]])),NOT(ISBLANK(tblProcessFMEA[[#This Row],[OCC.F]])),NOT(ISBLANK(tblProcessFMEA[[#This Row],[DET.F]]))),tblProcessFMEA[[#This Row],[SEV.F]]*tblProcessFMEA[[#This Row],[OCC.F]]*tblProcessFMEA[[#This Row],[DET.F]],-1)","v":-1}]
[null,null,null,null,null,null,null,null,null,{"$f":"IF(AND(NOT(ISBLANK(tblProcessFMEA[[#This Row],[SEV]])),NOT(ISBLANK(tblProcessFMEA[[#This Row],[OCC]])),NOT(ISBLANK(tblProcessFMEA[[#This Row],[DET]]))),tblProcessFMEA[[#This Row],[SEV]]*tblProcessFMEA[[#This Row],[OCC]]*tblProcessFMEA[[#This Row],[DET]],-1)","v":-1},null,null,null,null,null,null,{"$f":"IF(AND(NOT(ISBLANK(tblProcessFMEA[[#This Row],[SEV.F]])),NOT(ISBLANK(tblProcessFMEA[[#This Row],[OCC.F]])),NOT(ISBLANK(tblProcessFMEA[[#This Row],[DET.F]]))),tblProcessFMEA[[#This Row],[SEV.F]]*tblProcessFMEA[[#This Row],[OCC.F]]*tblProcessFMEA[[#This Row],[DET.F]],-1)","v":-1}]
[null,null,null,null,null,null,null,null,null,{"$f":"IF(AND(NOT(ISBLANK(tblProcessFMEA[[#This Row],[SEV]])),NOT(ISBLANK(tblProcessFMEA[[#This Row],[OCC]])),NOT(ISBLANK(tblProcessFMEA[[#This Row],[DET]]))),tblProcessFMEA[[#This Row],[SEV]]*tblProcessFMEA[[#This Row],[OCC]]*tblProcessFMEA[[#This Row],[DET]],-1)","v":-1},null,null,null,null,null,null,{"$f":"IF(AND(NOT(ISBLANK(tblProcessFMEA[[#This Row],[SEV.F]])),NOT(ISBLANK(tblProcessFMEA[[#This Row],[OCC.F]])),NOT(ISBLANK(tblProcessFMEA[[#This Row],[DET.F]]))),tblProcessFMEA[[#This Row],[SEV.F]]*tblProcessFMEA[[#This Row],[OCC.F]]*tblProcessFMEA[[#This Row],[DET.F]],-1)","v":-1}]
[null,null,null,null,null,null,null,null,null,{"$f":"IF(AND(NOT(ISBLANK(tblProcessFMEA[[#This Row],[SEV]])),NOT(ISBLANK(tblProcessFMEA[[#This Row],[OCC]])),NOT(ISBLANK(tblProcessFMEA[[#This Row],[DET]]))),tblProcessFMEA[[#This Row],[SEV]]*tblProcessFMEA[[#This Row],[OCC]]*tblProcessFMEA[[#This Row],[DET]],-1)","v":-1},null,null,null,null,null,null,{"$f":"IF(AND(NOT(ISBLANK(tblProcessFMEA[[#This Row],[SEV.F]])),NOT(ISBLANK(tblProcessFMEA[[#This Row],[OCC.F]])),NOT(ISBLANK(tblProcessFMEA[[#This Row],[DET.F]]))),tblProcessFMEA[[#This Row],[SEV.F]]*tblProcessFMEA[[#This Row],[OCC.F]]*tblProcessFMEA[[#This Row],[DET.F]],-1)","v":-1}]
[null,null,null,null,null,null,null,null,null,{"$f":"IF(AND(NOT(ISBLANK(tblProcessFMEA[[#This Row],[SEV]])),NOT(ISBLANK(tblProcessFMEA[[#This Row],[OCC]])),NOT(ISBLANK(tblProcessFMEA[[#This Row],[DET]]))),tblProcessFMEA[[#This Row],[SEV]]*tblProcessFMEA[[#This Row],[OCC]]*tblProcessFMEA[[#This Row],[DET]],-1)","v":-1},null,null,null,null,null,null,{"$f":"IF(AND(NOT(ISBLANK(tblProcessFMEA[[#This Row],[SEV.F]])),NOT(ISBLANK(tblProcessFMEA[[#This Row],[OCC.F]])),NOT(ISBLANK(tblProcessFMEA[[#This Row],[DET.F]]))),tblProcessFMEA[[#This Row],[SEV.F]]*tblProcessFMEA[[#This Row],[OCC.F]]*tblProcessFMEA[[#This Row],[DET.F]],-1)","v":-1}]
[null,null,null,null,null,null,null,null,null,{"$f":"IF(AND(NOT(ISBLANK(tblProcessFMEA[[#This Row],[SEV]])),NOT(ISBLANK(tblProcessFMEA[[#This Row],[OCC]])),NOT(ISBLANK(tblProcessFMEA[[#This Row],[DET]]))),tblProcessFMEA[[#This Row],[SEV]]*tblProcessFMEA[[#This Row],[OCC]]*tblProcessFMEA[[#This Row],[DET]],-1)","v":-1},null,null,null,null,null,null,{"$f":"IF(AND(NOT(ISBLANK(tblProcessFMEA[[#This Row],[SEV.F]])),NOT(ISBLANK(tblProcessFMEA[[#This Row],[OCC.F]])),NOT(ISBLANK(tblProcessFMEA[[#This Row],[DET.F]]))),tblProcessFMEA[[#This Row],[SEV.F]]*tblProcessFMEA[[#This Row],[OCC.F]]*tblProcessFMEA[[#This Row],[DET.F]],-1)","v":-1}]
[null,null,null,null,null,null,null,null,null,{"$f":"IF(AND(NOT(ISBLANK(tblProcessFMEA[[#This Row],[SEV]])),NOT(ISBLANK(tblProcessFMEA[[#This Row],[OCC]])),NOT(ISBLANK(tblProcessFMEA[[#This Row],[DET]]))),tblProcessFMEA[[#This Row],[SEV]]*tblProcessFMEA[[#This Row],[OCC]]*tblProcessFMEA[[#This Row],[DET]],-1)","v":-1},null,null,null,null,null,null,{"$f":"IF(AND(NOT(ISBLANK(tblProcessFMEA[[#This Row],[SEV.F]])),NOT(ISBLANK(tblProcessFMEA[[#This Row],[OCC.F]])),NOT(ISBLANK(tblProcessFMEA[[#This Row],[DET.F]]))),tblProcessFMEA[[#This Row],[SEV.F]]*tblProcessFMEA[[#This Row],[OCC.F]]*tblProcessFMEA[[#This Row],[DET.F]],-1)","v":-1}]
[null,null,null,null,null,null,null,null,null,{"$f":"IF(AND(NOT(ISBLANK(tblProcessFMEA[[#This Row],[SEV]])),NOT(ISBLANK(tblProcessFMEA[[#This Row],[OCC]])),NOT(ISBLANK(tblProcessFMEA[[#This Row],[DET]]))),tblProcessFMEA[[#This Row],[SEV]]*tblProcessFMEA[[#This Row],[OCC]]*tblProcessFMEA[[#This Row],[DET]],-1)","v":-1},null,null,null,null,null,null,{"$f":"IF(AND(NOT(ISBLANK(tblProcessFMEA[[#This Row],[SEV.F]])),NOT(ISBLANK(tblProcessFMEA[[#This Row],[OCC.F]])),NOT(ISBLANK(tblProcessFMEA[[#This Row],[DET.F]]))),tblProcessFMEA[[#This Row],[SEV.F]]*tblProcessFMEA[[#This Row],[OCC.F]]*tblProcessFMEA[[#This Row],[DET.F]],-1)","v":-1}]
[null,null,null,null,null,null,null,null,null,{"$f":"IF(AND(NOT(ISBLANK(tblProcessFMEA[[#This Row],[SEV]])),NOT(ISBLANK(tblProcessFMEA[[#This Row],[OCC]])),NOT(ISBLANK(tblProcessFMEA[[#This Row],[DET]]))),tblProcessFMEA[[#This Row],[SEV]]*tblProcessFMEA[[#This Row],[OCC]]*tblProcessFMEA[[#This Row],[DET]],-1)","v":-1},null,null,null,null,null,null,{"$f":"IF(AND(NOT(ISBLANK(tblProcessFMEA[[#This Row],[SEV.F]])),NOT(ISBLANK(tblProcessFMEA[[#This Row],[OCC.F]])),NOT(ISBLANK(tblProcessFMEA[[#This Row],[DET.F]]))),tblProcessFMEA[[#This Row],[SEV.F]]*tblProcessFMEA[[#This Row],[OCC.F]]*tblProcessFMEA[[#This Row],[DET.F]],-1)","v":-1}]
[null,null,null,null,null,null,null,null,null,{"$f":"IF(AND(NOT(ISBLANK(tblProcessFMEA[[#This Row],[SEV]])),NOT(ISBLANK(tblProcessFMEA[[#This Row],[OCC]])),NOT(ISBLANK(tblProcessFMEA[[#This Row],[DET]]))),tblProcessFMEA[[#This Row],[SEV]]*tblProcessFMEA[[#This Row],[OCC]]*tblProcessFMEA[[#This Row],[DET]],-1)","v":-1},null,null,null,null,null,null,{"$f":"IF(AND(NOT(ISBLANK(tblProcessFMEA[[#This Row],[SEV.F]])),NOT(ISBLANK(tblProcessFMEA[[#This Row],[OCC.F]])),NOT(ISBLANK(tblProcessFMEA[[#This Row],[DET.F]]))),tblProcessFMEA[[#This Row],[SEV.F]]*tblProcessFMEA[[#This Row],[OCC.F]]*tblProcessFMEA[[#This Row],[DET.F]],-1)","v":-1}]
[null,null,null,null,null,null,null,null,null,{"$f":"IF(AND(NOT(ISBLANK(tblProcessFMEA[[#This Row],[SEV]])),NOT(ISBLANK(tblProcessFMEA[[#This Row],[OCC]])),NOT(ISBLANK(tblProcessFMEA[[#This Row],[DET]]))),tblProcessFMEA[[#This Row],[SEV]]*tblProcessFMEA[[#This Row],[OCC]]*tblProcessFMEA[[#This Row],[DET]],-1)","v":-1},null,null,null,null,null,null,{"$f":"IF(AND(NOT(ISBLANK(tblProcessFMEA[[#This Row],[SEV.F]])),NOT(ISBLANK(tblProcessFMEA[[#This Row],[OCC.F]])),NOT(ISBLANK(tblProcessFMEA[[#This Row],[DET.F]]))),tblProcessFMEA[[#This Row],[SEV.F]]*tblProcessFMEA[[#This Row],[OCC.F]]*tblProcessFMEA[[#This Row],[DET.F]],-1)","v":-1}]
[null,null,null,null,null,null,null,null,null,{"$f":"IF(AND(NOT(ISBLANK(tblProcessFMEA[[#This Row],[SEV]])),NOT(ISBLANK(tblProcessFMEA[[#This Row],[OCC]])),NOT(ISBLANK(tblProcessFMEA[[#This Row],[DET]]))),tblProcessFMEA[[#This Row],[SEV]]*tblProcessFMEA[[#This Row],[OCC]]*tblProcessFMEA[[#This Row],[DET]],-1)","v":-1},null,null,null,null,null,null,{"$f":"IF(AND(NOT(ISBLANK(tblProcessFMEA[[#This Row],[SEV.F]])),NOT(ISBLANK(tblProcessFMEA[[#This Row],[OCC.F]])),NOT(ISBLANK(tblProcessFMEA[[#This Row],[DET.F]]))),tblProcessFMEA[[#This Row],[SEV.F]]*tblProcessFMEA[[#This Row],[OCC.F]]*tblProcessFMEA[[#This Row],[DET.F]],-1)","v":-1}]
[null,null,null,null,null,null,null,null,null,{"$f":"IF(AND(NOT(ISBLANK(tblProcessFMEA[[#This Row],[SEV]])),NOT(ISBLANK(tblProcessFMEA[[#This Row],[OCC]])),NOT(ISBLANK(tblProcessFMEA[[#This Row],[DET]]))),tblProcessFMEA[[#This Row],[SEV]]*tblProcessFMEA[[#This Row],[OCC]]*tblProcessFMEA[[#This Row],[DET]],-1)","v":-1},null,null,null,null,null,null,{"$f":"IF(AND(NOT(ISBLANK(tblProcessFMEA[[#This Row],[SEV.F]])),NOT(ISBLANK(tblProcessFMEA[[#This Row],[OCC.F]])),NOT(ISBLANK(tblProcessFMEA[[#This Row],[DET.F]]))),tblProcessFMEA[[#This Row],[SEV.F]]*tblProcessFMEA[[#This Row],[OCC.F]]*tblProcessFMEA[[#This Row],[DET.F]],-1)","v":-1}]
[null,null,null,null,null,null,null,null,null,{"$f":"IF(AND(NOT(ISBLANK(tblProcessFMEA[[#This Row],[SEV]])),NOT(ISBLANK(tblProcessFMEA[[#This Row],[OCC]])),NOT(ISBLANK(tblProcessFMEA[[#This Row],[DET]]))),tblProcessFMEA[[#This Row],[SEV]]*tblProcessFMEA[[#This Row],[OCC]]*tblProcessFMEA[[#This Row],[DET]],-1)","v":-1},null,null,null,null,null,null,{"$f":"IF(AND(NOT(ISBLANK(tblProcessFMEA[[#This Row],[SEV.F]])),NOT(ISBLANK(tblProcessFMEA[[#This Row],[OCC.F]])),NOT(ISBLANK(tblProcessFMEA[[#This Row],[DET.F]]))),tblProcessFMEA[[#This Row],[SEV.F]]*tblProcessFMEA[[#This Row],[OCC.F]]*tblProcessFMEA[[#This Row],[DET.F]],-1)","v":-1}]
[null,null,null,null,null,null,null,null,null,{"$f":"IF(AND(NOT(ISBLANK(tblProcessFMEA[[#This Row],[SEV]])),NOT(ISBLANK(tblProcessFMEA[[#This Row],[OCC]])),NOT(ISBLANK(tblProcessFMEA[[#This Row],[DET]]))),tblProcessFMEA[[#This Row],[SEV]]*tblProcessFMEA[[#This Row],[OCC]]*tblProcessFMEA[[#This Row],[DET]],-1)","v":-1},null,null,null,null,null,null,{"$f":"IF(AND(NOT(ISBLANK(tblProcessFMEA[[#This Row],[SEV.F]])),NOT(ISBLANK(tblProcessFMEA[[#This Row],[OCC.F]])),NOT(ISBLANK(tblProcessFMEA[[#This Row],[DET.F]]))),tblProcessFMEA[[#This Row],[SEV.F]]*tblProcessFMEA[[#This Row],[OCC.F]]*tblProcessFMEA[[#This Row],[DET.F]],-1)","v":-1}]
[null,null,null,null,null,null,null,null,null,{"$f":"IF(AND(NOT(ISBLANK(tblProcessFMEA[[#This Row],[SEV]])),NOT(ISBLANK(tblProcessFMEA[[#This Row],[OCC]])),NOT(ISBLANK(tblProcessFMEA[[#This Row],[DET]]))),tblProcessFMEA[[#This Row],[SEV]]*tblProcessFMEA[[#This Row],[OCC]]*tblProcessFMEA[[#This Row],[DET]],-1)","v":-1},null,null,null,null,null,null,{"$f":"IF(AND(NOT(ISBLANK(tblProcessFMEA[[#This Row],[SEV.F]])),NOT(ISBLANK(tblProcessFMEA[[#This Row],[OCC.F]])),NOT(ISBLANK(tblProcessFMEA[[#This Row],[DET.F]]))),tblProcessFMEA[[#This Row],[SEV.F]]*tblProcessFMEA[[#This Row],[OCC.F]]*tblProcessFMEA[[#This Row],[DET.F]],-1)","v":-1}]
[null,null,null,null,null,null,null,null,null,{"$f":"IF(AND(NOT(ISBLANK(tblProcessFMEA[[#This Row],[SEV]])),NOT(ISBLANK(tblProcessFMEA[[#This Row],[OCC]])),NOT(ISBLANK(tblProcessFMEA[[#This Row],[DET]]))),tblProcessFMEA[[#This Row],[SEV]]*tblProcessFMEA[[#This Row],[OCC]]*tblProcessFMEA[[#This Row],[DET]],-1)","v":-1},null,null,null,null,null,null,{"$f":"IF(AND(NOT(ISBLANK(tblProcessFMEA[[#This Row],[SEV.F]])),NOT(ISBLANK(tblProcessFMEA[[#This Row],[OCC.F]])),NOT(ISBLANK(tblProcessFMEA[[#This Row],[DET.F]]))),tblProcessFMEA[[#This Row],[SEV.F]]*tblProcessFMEA[[#This Row],[OCC.F]]*tblProcessFMEA[[#This Row],[DET.F]],-1)","v":-1}]
[null,null,null,null,null,null,null,null,null,{"$f":"IF(AND(NOT(ISBLANK(tblProcessFMEA[[#This Row],[SEV]])),NOT(ISBLANK(tblProcessFMEA[[#This Row],[OCC]])),NOT(ISBLANK(tblProcessFMEA[[#This Row],[DET]]))),tblProcessFMEA[[#This Row],[SEV]]*tblProcessFMEA[[#This Row],[OCC]]*tblProcessFMEA[[#This Row],[DET]],-1)","v":-1},null,null,null,null,null,null,{"$f":"IF(AND(NOT(ISBLANK(tblProcessFMEA[[#This Row],[SEV.F]])),NOT(ISBLANK(tblProcessFMEA[[#This Row],[OCC.F]])),NOT(ISBLANK(tblProcessFMEA[[#This Row],[DET.F]]))),tblProcessFMEA[[#This Row],[SEV.F]]*tblProcessFMEA[[#This Row],[OCC.F]]*tblProcessFMEA[[#This Row],[DET.F]],-1)","v":-1}]
[null,null,null,null,null,null,null,null,null,{"$f":"IF(AND(NOT(ISBLANK(tblProcessFMEA[[#This Row],[SEV]])),NOT(ISBLANK(tblProcessFMEA[[#This Row],[OCC]])),NOT(ISBLANK(tblProcessFMEA[[#This Row],[DET]]))),tblProcessFMEA[[#This Row],[SEV]]*tblProcessFMEA[[#This Row],[OCC]]*tblProcessFMEA[[#This Row],[DET]],-1)","v":-1},null,null,null,null,null,null,{"$f":"IF(AND(NOT(ISBLANK(tblProcessFMEA[[#This Row],[SEV.F]])),NOT(ISBLANK(tblProcessFMEA[[#This Row],[OCC.F]])),NOT(ISBLANK(tblProcessFMEA[[#This Row],[DET.F]]))),tblProcessFMEA[[#This Row],[SEV.F]]*tblProcessFMEA[[#This Row],[OCC.F]]*tblProcessFMEA[[#This Row],[DET.F]],-1)","v":-1}]
[null,null,null,null,null,null,null,null,null,{"$f":"IF(AND(NOT(ISBLANK(tblProcessFMEA[[#This Row],[SEV]])),NOT(ISBLANK(tblProcessFMEA[[#This Row],[OCC]])),NOT(ISBLANK(tblProcessFMEA[[#This Row],[DET]]))),tblProcessFMEA[[#This Row],[SEV]]*tblProcessFMEA[[#This Row],[OCC]]*tblProcessFMEA[[#This Row],[DET]],-1)","v":-1},null,null,null,null,null,null,{"$f":"IF(AND(NOT(ISBLANK(tblProcessFMEA[[#This Row],[SEV.F]])),NOT(ISBLANK(tblProcessFMEA[[#This Row],[OCC.F]])),NOT(ISBLANK(tblProcessFMEA[[#This Row],[DET.F]]))),tblProcessFMEA[[#This Row],[SEV.F]]*tblProcessFMEA[[#This Row],[OCC.F]]*tblProcessFMEA[[#This Row],[DET.F]],-1)","v":-1}]
[null,null,null,null,null,null,null,null,null,{"$f":"IF(AND(NOT(ISBLANK(tblProcessFMEA[[#This Row],[SEV]])),NOT(ISBLANK(tblProcessFMEA[[#This Row],[OCC]])),NOT(ISBLANK(tblProcessFMEA[[#This Row],[DET]]))),tblProcessFMEA[[#This Row],[SEV]]*tblProcessFMEA[[#This Row],[OCC]]*tblProcessFMEA[[#This Row],[DET]],-1)","v":-1},null,null,null,null,null,null,{"$f":"IF(AND(NOT(ISBLANK(tblProcessFMEA[[#This Row],[SEV.F]])),NOT(ISBLANK(tblProcessFMEA[[#This Row],[OCC.F]])),NOT(ISBLANK(tblProcessFMEA[[#This Row],[DET.F]]))),tblProcessFMEA[[#This Row],[SEV.F]]*tblProcessFMEA[[#This Row],[OCC.F]]*tblProcessFMEA[[#This Row],[DET.F]],-1)","v":-1}]
[null,null,null,null,null,null,null,null,null,{"$f":"IF(AND(NOT(ISBLANK(tblProcessFMEA[[#This Row],[SEV]])),NOT(ISBLANK(tblProcessFMEA[[#This Row],[OCC]])),NOT(ISBLANK(tblProcessFMEA[[#This Row],[DET]]))),tblProcessFMEA[[#This Row],[SEV]]*tblProcessFMEA[[#This Row],[OCC]]*tblProcessFMEA[[#This Row],[DET]],-1)","v":-1},null,null,null,null,null,null,{"$f":"IF(AND(NOT(ISBLANK(tblProcessFMEA[[#This Row],[SEV.F]])),NOT(ISBLANK(tblProcessFMEA[[#This Row],[OCC.F]])),NOT(ISBLANK(tblProcessFMEA[[#This Row],[DET.F]]))),tblProcessFMEA[[#This Row],[SEV.F]]*tblProcessFMEA[[#This Row],[OCC.F]]*tblProcessFMEA[[#This Row],[DET.F]],-1)","v":-1}]
[null,null,null,null,null,null,null,null,null,{"$f":"IF(AND(NOT(ISBLANK(tblProcessFMEA[[#This Row],[SEV]])),NOT(ISBLANK(tblProcessFMEA[[#This Row],[OCC]])),NOT(ISBLANK(tblProcessFMEA[[#This Row],[DET]]))),tblProcessFMEA[[#This Row],[SEV]]*tblProcessFMEA[[#This Row],[OCC]]*tblProcessFMEA[[#This Row],[DET]],-1)","v":-1},null,null,null,null,null,null,{"$f":"IF(AND(NOT(ISBLANK(tblProcessFMEA[[#This Row],[SEV.F]])),NOT(ISBLANK(tblProcessFMEA[[#This Row],[OCC.F]])),NOT(ISBLANK(tblProcessFMEA[[#This Row],[DET.F]]))),tblProcessFMEA[[#This Row],[SEV.F]]*tblProcessFMEA[[#This Row],[OCC.F]]*tblProcessFMEA[[#This Row],[DET.F]],-1)","v":-1}]
[null,null,null,null,null,null,null,null,null,{"$f":"IF(AND(NOT(ISBLANK(tblProcessFMEA[[#This Row],[SEV]])),NOT(ISBLANK(tblProcessFMEA[[#This Row],[OCC]])),NOT(ISBLANK(tblProcessFMEA[[#This Row],[DET]]))),tblProcessFMEA[[#This Row],[SEV]]*tblProcessFMEA[[#This Row],[OCC]]*tblProcessFMEA[[#This Row],[DET]],-1)","v":-1},null,null,null,null,null,null,{"$f":"IF(AND(NOT(ISBLANK(tblProcessFMEA[[#This Row],[SEV.F]])),NOT(ISBLANK(tblProcessFMEA[[#This Row],[OCC.F]])),NOT(ISBLANK(tblProcessFMEA[[#This Row],[DET.F]]))),tblProcessFMEA[[#This Row],[SEV.F]]*tblProcessFMEA[[#This Row],[OCC.F]]*tblProcessFMEA[[#This Row],[DET.F]],-1)","v":-1}]
[null,null,null,null,null,null,null,null,null,{"$f":"IF(AND(NOT(ISBLANK(tblProcessFMEA[[#This Row],[SEV]])),NOT(ISBLANK(tblProcessFMEA[[#This Row],[OCC]])),NOT(ISBLANK(tblProcessFMEA[[#This Row],[DET]]))),tblProcessFMEA[[#This Row],[SEV]]*tblProcessFMEA[[#This Row],[OCC]]*tblProcessFMEA[[#This Row],[DET]],-1)","v":-1},null,null,null,null,null,null,{"$f":"IF(AND(NOT(ISBLANK(tblProcessFMEA[[#This Row],[SEV.F]])),NOT(ISBLANK(tblProcessFMEA[[#This Row],[OCC.F]])),NOT(ISBLANK(tblProcessFMEA[[#This Row],[DET.F]]))),tblProcessFMEA[[#This Row],[SEV.F]]*tblProcessFMEA[[#This Row],[OCC.F]]*tblProcessFMEA[[#This Row],[DET.F]],-1)","v":-1}]
[null,null,null,null,null,null,null,null,null,{"$f":"IF(AND(NOT(ISBLANK(tblProcessFMEA[[#This Row],[SEV]])),NOT(ISBLANK(tblProcessFMEA[[#This Row],[OCC]])),NOT(ISBLANK(tblProcessFMEA[[#This Row],[DET]]))),tblProcessFMEA[[#This Row],[SEV]]*tblProcessFMEA[[#This Row],[OCC]]*tblProcessFMEA[[#This Row],[DET]],-1)","v":-1},null,null,null,null,null,null,{"$f":"IF(AND(NOT(ISBLANK(tblProcessFMEA[[#This Row],[SEV.F]])),NOT(ISBLANK(tblProcessFMEA[[#This Row],[OCC.F]])),NOT(ISBLANK(tblProcessFMEA[[#This Row],[DET.F]]))),tblProcessFMEA[[#This Row],[SEV.F]]*tblProcessFMEA[[#This Row],[OCC.F]]*tblProcessFMEA[[#This Row],[DET.F]],-1)","v":-1}]
[null,null,null,null,null,null,null,null,null,{"$f":"IF(AND(NOT(ISBLANK(tblProcessFMEA[[#This Row],[SEV]])),NOT(ISBLANK(tblProcessFMEA[[#This Row],[OCC]])),NOT(ISBLANK(tblProcessFMEA[[#This Row],[DET]]))),tblProcessFMEA[[#This Row],[SEV]]*tblProcessFMEA[[#This Row],[OCC]]*tblProcessFMEA[[#This Row],[DET]],-1)","v":-1},null,null,null,null,null,null,{"$f":"IF(AND(NOT(ISBLANK(tblProcessFMEA[[#This Row],[SEV.F]])),NOT(ISBLANK(tblProcessFMEA[[#This Row],[OCC.F]])),NOT(ISBLANK(tblProcessFMEA[[#This Row],[DET.F]]))),tblProcessFMEA[[#This Row],[SEV.F]]*tblProcessFMEA[[#This Row],[OCC.F]]*tblProcessFMEA[[#This Row],[DET.F]],-1)","v":-1}]
[null,null,null,null,null,null,null,null,null,{"$f":"IF(AND(NOT(ISBLANK(tblProcessFMEA[[#This Row],[SEV]])),NOT(ISBLANK(tblProcessFMEA[[#This Row],[OCC]])),NOT(ISBLANK(tblProcessFMEA[[#This Row],[DET]]))),tblProcessFMEA[[#This Row],[SEV]]*tblProcessFMEA[[#This Row],[OCC]]*tblProcessFMEA[[#This Row],[DET]],-1)","v":-1},null,null,null,null,null,null,{"$f":"IF(AND(NOT(ISBLANK(tblProcessFMEA[[#This Row],[SEV.F]])),NOT(ISBLANK(tblProcessFMEA[[#This Row],[OCC.F]])),NOT(ISBLANK(tblProcessFMEA[[#This Row],[DET.F]]))),tblProcessFMEA[[#This Row],[SEV.F]]*tblProcessFMEA[[#This Row],[OCC.F]]*tblProcessFMEA[[#This Row],[DET.F]],-1)","v":-1}]
[null,null,null,null,null,null,null,null,null,{"$f":"IF(AND(NOT(ISBLANK(tblProcessFMEA[[#This Row],[SEV]])),NOT(ISBLANK(tblProcessFMEA[[#This Row],[OCC]])),NOT(ISBLANK(tblProcessFMEA[[#This Row],[DET]]))),tblProcessFMEA[[#This Row],[SEV]]*tblProcessFMEA[[#This Row],[OCC]]*tblProcessFMEA[[#This Row],[DET]],-1)","v":-1},null,null,null,null,null,null,{"$f":"IF(AND(NOT(ISBLANK(tblProcessFMEA[[#This Row],[SEV.F]])),NOT(ISBLANK(tblProcessFMEA[[#This Row],[OCC.F]])),NOT(ISBLANK(tblProcessFMEA[[#This Row],[DET.F]]))),tblProcessFMEA[[#This Row],[SEV.F]]*tblProcessFMEA[[#This Row],[OCC.F]]*tblProcessFMEA[[#This Row],[DET.F]],-1)","v":-1}]
[null,null,null,null,null,null,null,null,null,{"$f":"IF(AND(NOT(ISBLANK(tblProcessFMEA[[#This Row],[SEV]])),NOT(ISBLANK(tblProcessFMEA[[#This Row],[OCC]])),NOT(ISBLANK(tblProcessFMEA[[#This Row],[DET]]))),tblProcessFMEA[[#This Row],[SEV]]*tblProcessFMEA[[#This Row],[OCC]]*tblProcessFMEA[[#This Row],[DET]],-1)","v":-1},null,null,null,null,null,null,{"$f":"IF(AND(NOT(ISBLANK(tblProcessFMEA[[#This Row],[SEV.F]])),NOT(ISBLANK(tblProcessFMEA[[#This Row],[OCC.F]])),NOT(ISBLANK(tblProcessFMEA[[#This Row],[DET.F]]))),tblProcessFMEA[[#This Row],[SEV.F]]*tblProcessFMEA[[#This Row],[OCC.F]]*tblProcessFMEA[[#This Row],[DET.F]],-1)","v":-1}]
[null,null,null,null,null,null,null,null,null,{"$f":"IF(AND(NOT(ISBLANK(tblProcessFMEA[[#This Row],[SEV]])),NOT(ISBLANK(tblProcessFMEA[[#This Row],[OCC]])),NOT(ISBLANK(tblProcessFMEA[[#This Row],[DET]]))),tblProcessFMEA[[#This Row],[SEV]]*tblProcessFMEA[[#This Row],[OCC]]*tblProcessFMEA[[#This Row],[DET]],-1)","v":-1},null,null,null,null,null,null,{"$f":"IF(AND(NOT(ISBLANK(tblProcessFMEA[[#This Row],[SEV.F]])),NOT(ISBLANK(tblProcessFMEA[[#This Row],[OCC.F]])),NOT(ISBLANK(tblProcessFMEA[[#This Row],[DET.F]]))),tblProcessFMEA[[#This Row],[SEV.F]]*tblProcessFMEA[[#This Row],[OCC.F]]*tblProcessFMEA[[#This Row],[DET.F]],-1)","v":-1}]
[null,null,null,null,null,null,null,null,null,{"$f":"IF(AND(NOT(ISBLANK(tblProcessFMEA[[#This Row],[SEV]])),NOT(ISBLANK(tblProcessFMEA[[#This Row],[OCC]])),NOT(ISBLANK(tblProcessFMEA[[#This Row],[DET]]))),tblProcessFMEA[[#This Row],[SEV]]*tblProcessFMEA[[#This Row],[OCC]]*tblProcessFMEA[[#This Row],[DET]],-1)","v":-1},null,null,null,null,null,null,{"$f":"IF(AND(NOT(ISBLANK(tblProcessFMEA[[#This Row],[SEV.F]])),NOT(ISBLANK(tblProcessFMEA[[#This Row],[OCC.F]])),NOT(ISBLANK(tblProcessFMEA[[#This Row],[DET.F]]))),tblProcessFMEA[[#This Row],[SEV.F]]*tblProcessFMEA[[#This Row],[OCC.F]]*tblProcessFMEA[[#This Row],[DET.F]],-1)","v":-1}]
[null,null,null,null,null,null,null,null,null,{"$f":"IF(AND(NOT(ISBLANK(tblProcessFMEA[[#This Row],[SEV]])),NOT(ISBLANK(tblProcessFMEA[[#This Row],[OCC]])),NOT(ISBLANK(tblProcessFMEA[[#This Row],[DET]]))),tblProcessFMEA[[#This Row],[SEV]]*tblProcessFMEA[[#This Row],[OCC]]*tblProcessFMEA[[#This Row],[DET]],-1)","v":-1},null,null,null,null,null,null,{"$f":"IF(AND(NOT(ISBLANK(tblProcessFMEA[[#This Row],[SEV.F]])),NOT(ISBLANK(tblProcessFMEA[[#This Row],[OCC.F]])),NOT(ISBLANK(tblProcessFMEA[[#This Row],[DET.F]]))),tblProcessFMEA[[#This Row],[SEV.F]]*tblProcessFMEA[[#This Row],[OCC.F]]*tblProcessFMEA[[#This Row],[DET.F]],-1)","v":-1}]
[null,null,null,null,null,null,null,null,null,{"$f":"IF(AND(NOT(ISBLANK(tblProcessFMEA[[#This Row],[SEV]])),NOT(ISBLANK(tblProcessFMEA[[#This Row],[OCC]])),NOT(ISBLANK(tblProcessFMEA[[#This Row],[DET]]))),tblProcessFMEA[[#This Row],[SEV]]*tblProcessFMEA[[#This Row],[OCC]]*tblProcessFMEA[[#This Row],[DET]],-1)","v":-1},null,null,null,null,null,null,{"$f":"IF(AND(NOT(ISBLANK(tblProcessFMEA[[#This Row],[SEV.F]])),NOT(ISBLANK(tblProcessFMEA[[#This Row],[OCC.F]])),NOT(ISBLANK(tblProcessFMEA[[#This Row],[DET.F]]))),tblProcessFMEA[[#This Row],[SEV.F]]*tblProcessFMEA[[#This Row],[OCC.F]]*tblProcessFMEA[[#This Row],[DET.F]],-1)","v":-1}]
[null,null,null,null,null,null,null,null,null,{"$f":"IF(AND(NOT(ISBLANK(tblProcessFMEA[[#This Row],[SEV]])),NOT(ISBLANK(tblProcessFMEA[[#This Row],[OCC]])),NOT(ISBLANK(tblProcessFMEA[[#This Row],[DET]]))),tblProcessFMEA[[#This Row],[SEV]]*tblProcessFMEA[[#This Row],[OCC]]*tblProcessFMEA[[#This Row],[DET]],-1)","v":-1},null,null,null,null,null,null,{"$f":"IF(AND(NOT(ISBLANK(tblProcessFMEA[[#This Row],[SEV.F]])),NOT(ISBLANK(tblProcessFMEA[[#This Row],[OCC.F]])),NOT(ISBLANK(tblProcessFMEA[[#This Row],[DET.F]]))),tblProcessFMEA[[#This Row],[SEV.F]]*tblProcessFMEA[[#This Row],[OCC.F]]*tblProcessFMEA[[#This Row],[DET.F]],-1)","v":-1}]
[null,null,null,null,null,null,null,null,null,{"$f":"IF(AND(NOT(ISBLANK(tblProcessFMEA[[#This Row],[SEV]])),NOT(ISBLANK(tblProcessFMEA[[#This Row],[OCC]])),NOT(ISBLANK(tblProcessFMEA[[#This Row],[DET]]))),tblProcessFMEA[[#This Row],[SEV]]*tblProcessFMEA[[#This Row],[OCC]]*tblProcessFMEA[[#This Row],[DET]],-1)","v":-1},null,null,null,null,null,null,{"$f":"IF(AND(NOT(ISBLANK(tblProcessFMEA[[#This Row],[SEV.F]])),NOT(ISBLANK(tblProcessFMEA[[#This Row],[OCC.F]])),NOT(ISBLANK(tblProcessFMEA[[#This Row],[DET.F]]))),tblProcessFMEA[[#This Row],[SEV.F]]*tblProcessFMEA[[#This Row],[OCC.F]]*tblProcessFMEA[[#This Row],[DET.F]],-1)","v":-1}]
[null,null,null,null,null,null,null,null,null,{"$f":"IF(AND(NOT(ISBLANK(tblProcessFMEA[[#This Row],[SEV]])),NOT(ISBLANK(tblProcessFMEA[[#This Row],[OCC]])),NOT(ISBLANK(tblProcessFMEA[[#This Row],[DET]]))),tblProcessFMEA[[#This Row],[SEV]]*tblProcessFMEA[[#This Row],[OCC]]*tblProcessFMEA[[#This Row],[DET]],-1)","v":-1},null,null,null,null,null,null,{"$f":"IF(AND(NOT(ISBLANK(tblProcessFMEA[[#This Row],[SEV.F]])),NOT(ISBLANK(tblProcessFMEA[[#This Row],[OCC.F]])),NOT(ISBLANK(tblProcessFMEA[[#This Row],[DET.F]]))),tblProcessFMEA[[#This Row],[SEV.F]]*tblProcessFMEA[[#This Row],[OCC.F]]*tblProcessFMEA[[#This Row],[DET.F]],-1)","v":-1}]
[null,null,null,null,null,null,null,null,null,{"$f":"IF(AND(NOT(ISBLANK(tblProcessFMEA[[#This Row],[SEV]])),NOT(ISBLANK(tblProcessFMEA[[#This Row],[OCC]])),NOT(ISBLANK(tblProcessFMEA[[#This Row],[DET]]))),tblProcessFMEA[[#This Row],[SEV]]*tblProcessFMEA[[#This Row],[OCC]]*tblProcessFMEA[[#This Row],[DET]],-1)","v":-1},null,null,null,null,null,null,{"$f":"IF(AND(NOT(ISBLANK(tblProcessFMEA[[#This Row],[SEV.F]])),NOT(ISBLANK(tblProcessFMEA[[#This Row],[OCC.F]])),NOT(ISBLANK(tblProcessFMEA[[#This Row],[DET.F]]))),tblProcessFMEA[[#This Row],[SEV.F]]*tblProcessFMEA[[#This Row],[OCC.F]]*tblProcessFMEA[[#This Row],[DET.F]],-1)","v":-1}]
[null,null,null,null,null,null,null,null,null,{"$f":"IF(AND(NOT(ISBLANK(tblProcessFMEA[[#This Row],[SEV]])),NOT(ISBLANK(tblProcessFMEA[[#This Row],[OCC]])),NOT(ISBLANK(tblProcessFMEA[[#This Row],[DET]]))),tblProcessFMEA[[#This Row],[SEV]]*tblProcessFMEA[[#This Row],[OCC]]*tblProcessFMEA[[#This Row],[DET]],-1)","v":-1},null,null,null,null,null,null,{"$f":"IF(AND(NOT(ISBLANK(tblProcessFMEA[[#This Row],[SEV.F]])),NOT(ISBLANK(tblProcessFMEA[[#This Row],[OCC.F]])),NOT(ISBLANK(tblProcessFMEA[[#This Row],[DET.F]]))),tblProcessFMEA[[#This Row],[SEV.F]]*tblProcessFMEA[[#This Row],[OCC.F]]*tblProcessFMEA[[#This Row],[DET.F]],-1)","v":-1}]
[null,null,null,null,null,null,null,null,null,{"$f":"IF(AND(NOT(ISBLANK(tblProcessFMEA[[#This Row],[SEV]])),NOT(ISBLANK(tblProcessFMEA[[#This Row],[OCC]])),NOT(ISBLANK(tblProcessFMEA[[#This Row],[DET]]))),tblProcessFMEA[[#This Row],[SEV]]*tblProcessFMEA[[#This Row],[OCC]]*tblProcessFMEA[[#This Row],[DET]],-1)","v":-1},null,null,null,null,null,null,{"$f":"IF(AND(NOT(ISBLANK(tblProcessFMEA[[#This Row],[SEV.F]])),NOT(ISBLANK(tblProcessFMEA[[#This Row],[OCC.F]])),NOT(ISBLANK(tblProcessFMEA[[#This Row],[DET.F]]))),tblProcessFMEA[[#This Row],[SEV.F]]*tblProcessFMEA[[#This Row],[OCC.F]]*tblProcessFMEA[[#This Row],[DET.F]],-1)","v":-1}]
[null,null,null,null,null,null,null,null,null,{"$f":"IF(AND(NOT(ISBLANK(tblProcessFMEA[[#This Row],[SEV]])),NOT(ISBLANK(tblProcessFMEA[[#This Row],[OCC]])),NOT(ISBLANK(tblProcessFMEA[[#This Row],[DET]]))),tblProcessFMEA[[#This Row],[SEV]]*tblProcessFMEA[[#This Row],[OCC]]*tblProcessFMEA[[#This Row],[DET]],-1)","v":-1},null,null,null,null,null,null,{"$f":"IF(AND(NOT(ISBLANK(tblProcessFMEA[[#This Row],[SEV.F]])),NOT(ISBLANK(tblProcessFMEA[[#This Row],[OCC.F]])),NOT(ISBLANK(tblProcessFMEA[[#This Row],[DET.F]]))),tblProcessFMEA[[#This Row],[SEV.F]]*tblProcessFMEA[[#This Row],[OCC.F]]*tblProcessFMEA[[#This Row],[DET.F]],-1)","v":-1}]
[null,null,null,null,null,null,null,null,null,{"$f":"IF(AND(NOT(ISBLANK(tblProcessFMEA[[#This Row],[SEV]])),NOT(ISBLANK(tblProcessFMEA[[#This Row],[OCC]])),NOT(ISBLANK(tblProcessFMEA[[#This Row],[DET]]))),tblProcessFMEA[[#This Row],[SEV]]*tblProcessFMEA[[#This Row],[OCC]]*tblProcessFMEA[[#This Row],[DET]],-1)","v":-1},null,null,null,null,null,null,{"$f":"IF(AND(NOT(ISBLANK(tblProcessFMEA[[#This Row],[SEV.F]])),NOT(ISBLANK(tblProcessFMEA[[#This Row],[OCC.F]])),NOT(ISBLANK(tblProcessFMEA[[#This Row],[DET.F]]))),tblProcessFMEA[[#This Row],[SEV.F]]*tblProcessFMEA[[#This Row],[OCC.F]]*tblProcessFMEA[[#This Row],[DET.F]],-1)","v":-1}]
[null,null,null,null,null,null,null,null,null,{"$f":"IF(AND(NOT(ISBLANK(tblProcessFMEA[[#This Row],[SEV]])),NOT(ISBLANK(tblProcessFMEA[[#This Row],[OCC]])),NOT(ISBLANK(tblProcessFMEA[[#This Row],[DET]]))),tblProcessFMEA[[#This Row],[SEV]]*tblProcessFMEA[[#This Row],[OCC]]*tblProcessFMEA[[#This Row],[DET]],-1)","v":-1},null,null,null,null,null,null,{"$f":"IF(AND(NOT(ISBLANK(tblProcessFMEA[[#This Row],[SEV.F]])),NOT(ISBLANK(tblProcessFMEA[[#This Row],[OCC.F]])),NOT(ISBLANK(tblProcessFMEA[[#This Row],[DET.F]]))),tblProcessFMEA[[#This Row],[SEV.F]]*tblProcessFMEA[[#This Row],[OCC.F]]*tblProcessFMEA[[#This Row],[DET.F]],-1)","v":-1}]
[null,null,null,null,null,null,null,null,null,{"$f":"IF(AND(NOT(ISBLANK(tblProcessFMEA[[#This Row],[SEV]])),NOT(ISBLANK(tblProcessFMEA[[#This Row],[OCC]])),NOT(ISBLANK(tblProcessFMEA[[#This Row],[DET]]))),tblProcessFMEA[[#This Row],[SEV]]*tblProcessFMEA[[#This Row],[OCC]]*tblProcessFMEA[[#This Row],[DET]],-1)","v":-1},null,null,null,null,null,null,{"$f":"IF(AND(NOT(ISBLANK(tblProcessFMEA[[#This Row],[SEV.F]])),NOT(ISBLANK(tblProcessFMEA[[#This Row],[OCC.F]])),NOT(ISBLANK(tblProcessFMEA[[#This Row],[DET.F]]))),tblProcessFMEA[[#This Row],[SEV.F]]*tblProcessFMEA[[#This Row],[OCC.F]]*tblProcessFMEA[[#This Row],[DET.F]],-1)","v":-1}]
[null,null,null,null,null,null,null,null,null,{"$f":"IF(AND(NOT(ISBLANK(tblProcessFMEA[[#This Row],[SEV]])),NOT(ISBLANK(tblProcessFMEA[[#This Row],[OCC]])),NOT(ISBLANK(tblProcessFMEA[[#This Row],[DET]]))),tblProcessFMEA[[#This Row],[SEV]]*tblProcessFMEA[[#This Row],[OCC]]*tblProcessFMEA[[#This Row],[DET]],-1)","v":-1},null,null,null,null,null,null,{"$f":"IF(AND(NOT(ISBLANK(tblProcessFMEA[[#This Row],[SEV.F]])),NOT(ISBLANK(tblProcessFMEA[[#This Row],[OCC.F]])),NOT(ISBLANK(tblProcessFMEA[[#This Row],[DET.F]]))),tblProcessFMEA[[#This Row],[SEV.F]]*tblProcessFMEA[[#This Row],[OCC.F]]*tblProcessFMEA[[#This Row],[DET.F]],-1)","v":-1}]
[null,null,null,null,null,null,null,null,null,{"$f":"IF(AND(NOT(ISBLANK(tblProcessFMEA[[#This Row],[SEV]])),NOT(ISBLANK(tblProcessFMEA[[#This Row],[OCC]])),NOT(ISBLANK(tblProcessFMEA[[#This Row],[DET]]))),tblProcessFMEA[[#This Row],[SEV]]*tblProcessFMEA[[#This Row],[OCC]]*tblProcessFMEA[[#This Row],[DET]],-1)","v":-1},null,null,null,null,null,null,{"$f":"IF(AND(NOT(ISBLANK(tblProcessFMEA[[#This Row],[SEV.F]])),NOT(ISBLANK(tblProcessFMEA[[#This Row],[OCC.F]])),NOT(ISBLANK(tblProcessFMEA[[#This Row],[DET.F]]))),tblProcessFMEA[[#This Row],[SEV.F]]*tblProcessFMEA[[#This Row],[OCC.F]]*tblProcessFMEA[[#This Row],[DET.F]],-1)","v":-1}]
[null,null,null,null,null,null,null,null,null,{"$f":"IF(AND(NOT(ISBLANK(tblProcessFMEA[[#This Row],[SEV]])),NOT(ISBLANK(tblProcessFMEA[[#This Row],[OCC]])),NOT(ISBLANK(tblProcessFMEA[[#This Row],[DET]]))),tblProcessFMEA[[#This Row],[SEV]]*tblProcessFMEA[[#This Row],[OCC]]*tblProcessFMEA[[#This Row],[DET]],-1)","v":-1},null,null,null,null,null,null,{"$f":"IF(AND(NOT(ISBLANK(tblProcessFMEA[[#This Row],[SEV.F]])),NOT(ISBLANK(tblProcessFMEA[[#This Row],[OCC.F]])),NOT(ISBLANK(tblProcessFMEA[[#This Row],[DET.F]]))),tblProcessFMEA[[#This Row],[SEV.F]]*tblProcessFMEA[[#This Row],[OCC.F]]*tblProcessFMEA[[#This Row],[DET.F]],-1)","v":-1}]
[null,null,null,null,null,null,null,null,null,{"$f":"IF(AND(NOT(ISBLANK(tblProcessFMEA[[#This Row],[SEV]])),NOT(ISBLANK(tblProcessFMEA[[#This Row],[OCC]])),NOT(ISBLANK(tblProcessFMEA[[#This Row],[DET]]))),tblProcessFMEA[[#This Row],[SEV]]*tblProcessFMEA[[#This Row],[OCC]]*tblProcessFMEA[[#This Row],[DET]],-1)","v":-1},null,null,null,null,null,null,{"$f":"IF(AND(NOT(ISBLANK(tblProcessFMEA[[#This Row],[SEV.F]])),NOT(ISBLANK(tblProcessFMEA[[#This Row],[OCC.F]])),NOT(ISBLANK(tblProcessFMEA[[#This Row],[DET.F]]))),tblProcessFMEA[[#This Row],[SEV.F]]*tblProcessFMEA[[#This Row],[OCC.F]]*tblProcessFMEA[[#This Row],[DET.F]],-1)","v":-1}]
[null,null,null,null,null,null,null,null,null,{"$f":"IF(AND(NOT(ISBLANK(tblProcessFMEA[[#This Row],[SEV]])),NOT(ISBLANK(tblProcessFMEA[[#This Row],[OCC]])),NOT(ISBLANK(tblProcessFMEA[[#This Row],[DET]]))),tblProcessFMEA[[#This Row],[SEV]]*tblProcessFMEA[[#This Row],[OCC]]*tblProcessFMEA[[#This Row],[DET]],-1)","v":-1},null,null,null,null,null,null,{"$f":"IF(AND(NOT(ISBLANK(tblProcessFMEA[[#This Row],[SEV.F]])),NOT(ISBLANK(tblProcessFMEA[[#This Row],[OCC.F]])),NOT(ISBLANK(tblProcessFMEA[[#This Row],[DET.F]]))),tblProcessFMEA[[#This Row],[SEV.F]]*tblProcessFMEA[[#This Row],[OCC.F]]*tblProcessFMEA[[#This Row],[DET.F]],-1)","v":-1}]
[null,null,null,null,null,null,null,null,null,{"$f":"IF(AND(NOT(ISBLANK(tblProcessFMEA[[#This Row],[SEV]])),NOT(ISBLANK(tblProcessFMEA[[#This Row],[OCC]])),NOT(ISBLANK(tblProcessFMEA[[#This Row],[DET]]))),tblProcessFMEA[[#This Row],[SEV]]*tblProcessFMEA[[#This Row],[OCC]]*tblProcessFMEA[[#This Row],[DET]],-1)","v":-1},null,null,null,null,null,null,{"$f":"IF(AND(NOT(ISBLANK(tblProcessFMEA[[#This Row],[SEV.F]])),NOT(ISBLANK(tblProcessFMEA[[#This Row],[OCC.F]])),NOT(ISBLANK(tblProcessFMEA[[#This Row],[DET.F]]))),tblProcessFMEA[[#This Row],[SEV.F]]*tblProcessFMEA[[#This Row],[OCC.F]]*tblProcessFMEA[[#This Row],[DET.F]],-1)","v":-1}]
[null,null,null,null,null,null,null,null,null,{"$f":"IF(AND(NOT(ISBLANK(tblProcessFMEA[[#This Row],[SEV]])),NOT(ISBLANK(tblProcessFMEA[[#This Row],[OCC]])),NOT(ISBLANK(tblProcessFMEA[[#This Row],[DET]]))),tblProcessFMEA[[#This Row],[SEV]]*tblProcessFMEA[[#This Row],[OCC]]*tblProcessFMEA[[#This Row],[DET]],-1)","v":-1},null,null,null,null,null,null,{"$f":"IF(AND(NOT(ISBLANK(tblProcessFMEA[[#This Row],[SEV.F]])),NOT(ISBLANK(tblProcessFMEA[[#This Row],[OCC.F]])),NOT(ISBLANK(tblProcessFMEA[[#This Row],[DET.F]]))),tblProcessFMEA[[#This Row],[SEV.F]]*tblProcessFMEA[[#This Row],[OCC.F]]*tblProcessFMEA[[#This Row],[DET.F]],-1)","v":-1}]
[null,null,null,null,null,null,null,null,null,{"$f":"IF(AND(NOT(ISBLANK(tblProcessFMEA[[#This Row],[SEV]])),NOT(ISBLANK(tblProcessFMEA[[#This Row],[OCC]])),NOT(ISBLANK(tblProcessFMEA[[#This Row],[DET]]))),tblProcessFMEA[[#This Row],[SEV]]*tblProcessFMEA[[#This Row],[OCC]]*tblProcessFMEA[[#This Row],[DET]],-1)","v":-1},null,null,null,null,null,null,{"$f":"IF(AND(NOT(ISBLANK(tblProcessFMEA[[#This Row],[SEV.F]])),NOT(ISBLANK(tblProcessFMEA[[#This Row],[OCC.F]])),NOT(ISBLANK(tblProcessFMEA[[#This Row],[DET.F]]))),tblProcessFMEA[[#This Row],[SEV.F]]*tblProcessFMEA[[#This Row],[OCC.F]]*tblProcessFMEA[[#This Row],[DET.F]],-1)","v":-1}]
[null,null,null,null,null,null,null,null,null,{"$f":"IF(AND(NOT(ISBLANK(tblProcessFMEA[[#This Row],[SEV]])),NOT(ISBLANK(tblProcessFMEA[[#This Row],[OCC]])),NOT(ISBLANK(tblProcessFMEA[[#This Row],[DET]]))),tblProcessFMEA[[#This Row],[SEV]]*tblProcessFMEA[[#This Row],[OCC]]*tblProcessFMEA[[#This Row],[DET]],-1)","v":-1},null,null,null,null,null,null,{"$f":"IF(AND(NOT(ISBLANK(tblProcessFMEA[[#This Row],[SEV.F]])),NOT(ISBLANK(tblProcessFMEA[[#This Row],[OCC.F]])),NOT(ISBLANK(tblProcessFMEA[[#This Row],[DET.F]]))),tblProcessFMEA[[#This Row],[SEV.F]]*tblProcessFMEA[[#This Row],[OCC.F]]*tblProcessFMEA[[#This Row],[DET.F]],-1)","v":-1}]
[null,null,null,null,null,null,null,null,null,{"$f":"IF(AND(NOT(ISBLANK(tblProcessFMEA[[#This Row],[SEV]])),NOT(ISBLANK(tblProcessFMEA[[#This Row],[OCC]])),NOT(ISBLANK(tblProcessFMEA[[#This Row],[DET]]))),tblProcessFMEA[[#This Row],[SEV]]*tblProcessFMEA[[#This Row],[OCC]]*tblProcessFMEA[[#This Row],[DET]],-1)","v":-1},null,null,null,null,null,null,{"$f":"IF(AND(NOT(ISBLANK(tblProcessFMEA[[#This Row],[SEV.F]])),NOT(ISBLANK(tblProcessFMEA[[#This Row],[OCC.F]])),NOT(ISBLANK(tblProcessFMEA[[#This Row],[DET.F]]))),tblProcessFMEA[[#This Row],[SEV.F]]*tblProcessFMEA[[#This Row],[OCC.F]]*tblProcessFMEA[[#This Row],[DET.F]],-1)","v":-1}]
[null,null,null,null,null,null,null,null,null,{"$f":"IF(AND(NOT(ISBLANK(tblProcessFMEA[[#This Row],[SEV]])),NOT(ISBLANK(tblProcessFMEA[[#This Row],[OCC]])),NOT(ISBLANK(tblProcessFMEA[[#This Row],[DET]]))),tblProcessFMEA[[#This Row],[SEV]]*tblProcessFMEA[[#This Row],[OCC]]*tblProcessFMEA[[#This Row],[DET]],-1)","v":-1},null,null,null,null,null,null,{"$f":"IF(AND(NOT(ISBLANK(tblProcessFMEA[[#This Row],[SEV.F]])),NOT(ISBLANK(tblProcessFMEA[[#This Row],[OCC.F]])),NOT(ISBLANK(tblProcessFMEA[[#This Row],[DET.F]]))),tblProcessFMEA[[#This Row],[SEV.F]]*tblProcessFMEA[[#This Row],[OCC.F]]*tblProcessFMEA[[#This Row],[DET.F]],-1)","v":-1}]
[null,null,null,null,null,null,null,null,null,{"$f":"IF(AND(NOT(ISBLANK(tblProcessFMEA[[#This Row],[SEV]])),NOT(ISBLANK(tblProcessFMEA[[#This Row],[OCC]])),NOT(ISBLANK(tblProcessFMEA[[#This Row],[DET]]))),tblProcessFMEA[[#This Row],[SEV]]*tblProcessFMEA[[#This Row],[OCC]]*tblProcessFMEA[[#This Row],[DET]],-1)","v":-1},null,null,null,null,null,null,{"$f":"IF(AND(NOT(ISBLANK(tblProcessFMEA[[#This Row],[SEV.F]])),NOT(ISBLANK(tblProcessFMEA[[#This Row],[OCC.F]])),NOT(ISBLANK(tblProcessFMEA[[#This Row],[DET.F]]))),tblProcessFMEA[[#This Row],[SEV.F]]*tblProcessFMEA[[#This Row],[OCC.F]]*tblProcessFMEA[[#This Row],[DET.F]],-1)","v":-1}]
[null,null,null,null,null,null,null,null,null,{"$f":"IF(AND(NOT(ISBLANK(tblProcessFMEA[[#This Row],[SEV]])),NOT(ISBLANK(tblProcessFMEA[[#This Row],[OCC]])),NOT(ISBLANK(tblProcessFMEA[[#This Row],[DET]]))),tblProcessFMEA[[#This Row],[SEV]]*tblProcessFMEA[[#This Row],[OCC]]*tblProcessFMEA[[#This Row],[DET]],-1)","v":-1},null,null,null,null,null,null,{"$f":"IF(AND(NOT(ISBLANK(tblProcessFMEA[[#This Row],[SEV.F]])),NOT(ISBLANK(tblProcessFMEA[[#This Row],[OCC.F]])),NOT(ISBLANK(tblProcessFMEA[[#This Row],[DET.F]]))),tblProcessFMEA[[#This Row],[SEV.F]]*tblProcessFMEA[[#This Row],[OCC.F]]*tblProcessFMEA[[#This Row],[DET.F]],-1)","v":-1}]
[null,null,null,null,null,null,null,null,null,{"$f":"IF(AND(NOT(ISBLANK(tblProcessFMEA[[#This Row],[SEV]])),NOT(ISBLANK(tblProcessFMEA[[#This Row],[OCC]])),NOT(ISBLANK(tblProcessFMEA[[#This Row],[DET]]))),tblProcessFMEA[[#This Row],[SEV]]*tblProcessFMEA[[#This Row],[OCC]]*tblProcessFMEA[[#This Row],[DET]],-1)","v":-1},null,null,null,null,null,null,{"$f":"IF(AND(NOT(ISBLANK(tblProcessFMEA[[#This Row],[SEV.F]])),NOT(ISBLANK(tblProcessFMEA[[#This Row],[OCC.F]])),NOT(ISBLANK(tblProcessFMEA[[#This Row],[DET.F]]))),tblProcessFMEA[[#This Row],[SEV.F]]*tblProcessFMEA[[#This Row],[OCC.F]]*tblProcessFMEA[[#This Row],[DET.F]],-1)","v":-1}]
[null,null,null,null,null,null,null,null,null,{"$f":"IF(AND(NOT(ISBLANK(tblProcessFMEA[[#This Row],[SEV]])),NOT(ISBLANK(tblProcessFMEA[[#This Row],[OCC]])),NOT(ISBLANK(tblProcessFMEA[[#This Row],[DET]]))),tblProcessFMEA[[#This Row],[SEV]]*tblProcessFMEA[[#This Row],[OCC]]*tblProcessFMEA[[#This Row],[DET]],-1)","v":-1},null,null,null,null,null,null,{"$f":"IF(AND(NOT(ISBLANK(tblProcessFMEA[[#This Row],[SEV.F]])),NOT(ISBLANK(tblProcessFMEA[[#This Row],[OCC.F]])),NOT(ISBLANK(tblProcessFMEA[[#This Row],[DET.F]]))),tblProcessFMEA[[#This Row],[SEV.F]]*tblProcessFMEA[[#This Row],[OCC.F]]*tblProcessFMEA[[#This Row],[DET.F]],-1)","v":-1}]
[null,null,null,null,null,null,null,null,null,{"$f":"IF(AND(NOT(ISBLANK(tblProcessFMEA[[#This Row],[SEV]])),NOT(ISBLANK(tblProcessFMEA[[#This Row],[OCC]])),NOT(ISBLANK(tblProcessFMEA[[#This Row],[DET]]))),tblProcessFMEA[[#This Row],[SEV]]*tblProcessFMEA[[#This Row],[OCC]]*tblProcessFMEA[[#This Row],[DET]],-1)","v":-1},null,null,null,null,null,null,{"$f":"IF(AND(NOT(ISBLANK(tblProcessFMEA[[#This Row],[SEV.F]])),NOT(ISBLANK(tblProcessFMEA[[#This Row],[OCC.F]])),NOT(ISBLANK(tblProcessFMEA[[#This Row],[DET.F]]))),tblProcessFMEA[[#This Row],[SEV.F]]*tblProcessFMEA[[#This Row],[OCC.F]]*tblProcessFMEA[[#This Row],[DET.F]],-1)","v":-1}]
[null,null,null,null,null,null,null,null,null,{"$f":"IF(AND(NOT(ISBLANK(tblProcessFMEA[[#This Row],[SEV]])),NOT(ISBLANK(tblProcessFMEA[[#This Row],[OCC]])),NOT(ISBLANK(tblProcessFMEA[[#This Row],[DET]]))),tblProcessFMEA[[#This Row],[SEV]]*tblProcessFMEA[[#This Row],[OCC]]*tblProcessFMEA[[#This Row],[DET]],-1)","v":-1},null,null,null,null,null,null,{"$f":"IF(AND(NOT(ISBLANK(tblProcessFMEA[[#This Row],[SEV.F]])),NOT(ISBLANK(tblProcessFMEA[[#This Row],[OCC.F]])),NOT(ISBLANK(tblProcessFMEA[[#This Row],[DET.F]]))),tblProcessFMEA[[#This Row],[SEV.F]]*tblProcessFMEA[[#This Row],[OCC.F]]*tblProcessFMEA[[#This Row],[DET.F]],-1)","v":-1}]
[null,null,null,null,null,null,null,null,null,{"$f":"IF(AND(NOT(ISBLANK(tblProcessFMEA[[#This Row],[SEV]])),NOT(ISBLANK(tblProcessFMEA[[#This Row],[OCC]])),NOT(ISBLANK(tblProcessFMEA[[#This Row],[DET]]))),tblProcessFMEA[[#This Row],[SEV]]*tblProcessFMEA[[#This Row],[OCC]]*tblProcessFMEA[[#This Row],[DET]],-1)","v":-1},null,null,null,null,null,null,{"$f":"IF(AND(NOT(ISBLANK(tblProcessFMEA[[#This Row],[SEV.F]])),NOT(ISBLANK(tblProcessFMEA[[#This Row],[OCC.F]])),NOT(ISBLANK(tblProcessFMEA[[#This Row],[DET.F]]))),tblProcessFMEA[[#This Row],[SEV.F]]*tblProcessFMEA[[#This Row],[OCC.F]]*tblProcessFMEA[[#This Row],[DET.F]],-1)","v":-1}]
[null,null,null,null,null,null,null,null,null,{"$f":"IF(AND(NOT(ISBLANK(tblProcessFMEA[[#This Row],[SEV]])),NOT(ISBLANK(tblProcessFMEA[[#This Row],[OCC]])),NOT(ISBLANK(tblProcessFMEA[[#This Row],[DET]]))),tblProcessFMEA[[#This Row],[SEV]]*tblProcessFMEA[[#This Row],[OCC]]*tblProcessFMEA[[#This Row],[DET]],-1)","v":-1},null,null,null,null,null,null,{"$f":"IF(AND(NOT(ISBLANK(tblProcessFMEA[[#This Row],[SEV.F]])),NOT(ISBLANK(tblProcessFMEA[[#This Row],[OCC.F]])),NOT(ISBLANK(tblProcessFMEA[[#This Row],[DET.F]]))),tblProcessFMEA[[#This Row],[SEV.F]]*tblProcessFMEA[[#This Row],[OCC.F]]*tblProcessFMEA[[#This Row],[DET.F]],-1)","v":-1}]
[null,null,null,null,null,null,null,null,null,{"$f":"IF(AND(NOT(ISBLANK(tblProcessFMEA[[#This Row],[SEV]])),NOT(ISBLANK(tblProcessFMEA[[#This Row],[OCC]])),NOT(ISBLANK(tblProcessFMEA[[#This Row],[DET]]))),tblProcessFMEA[[#This Row],[SEV]]*tblProcessFMEA[[#This Row],[OCC]]*tblProcessFMEA[[#This Row],[DET]],-1)","v":-1},null,null,null,null,null,null,{"$f":"IF(AND(NOT(ISBLANK(tblProcessFMEA[[#This Row],[SEV.F]])),NOT(ISBLANK(tblProcessFMEA[[#This Row],[OCC.F]])),NOT(ISBLANK(tblProcessFMEA[[#This Row],[DET.F]]))),tblProcessFMEA[[#This Row],[SEV.F]]*tblProcessFMEA[[#This Row],[OCC.F]]*tblProcessFMEA[[#This Row],[DET.F]],-1)","v":-1}]
[null,null,null,null,null,null,null,null,null,{"$f":"IF(AND(NOT(ISBLANK(tblProcessFMEA[[#This Row],[SEV]])),NOT(ISBLANK(tblProcessFMEA[[#This Row],[OCC]])),NOT(ISBLANK(tblProcessFMEA[[#This Row],[DET]]))),tblProcessFMEA[[#This Row],[SEV]]*tblProcessFMEA[[#This Row],[OCC]]*tblProcessFMEA[[#This Row],[DET]],-1)","v":-1},null,null,null,null,null,null,{"$f":"IF(AND(NOT(ISBLANK(tblProcessFMEA[[#This Row],[SEV.F]])),NOT(ISBLANK(tblProcessFMEA[[#This Row],[OCC.F]])),NOT(ISBLANK(tblProcessFMEA[[#This Row],[DET.F]]))),tblProcessFMEA[[#This Row],[SEV.F]]*tblProcessFMEA[[#This Row],[OCC.F]]*tblProcessFMEA[[#This Row],[DET.F]],-1)","v":-1}]
[null,null,null,null,null,null,null,null,null,{"$f":"IF(AND(NOT(ISBLANK(tblProcessFMEA[[#This Row],[SEV]])),NOT(ISBLANK(tblProcessFMEA[[#This Row],[OCC]])),NOT(ISBLANK(tblProcessFMEA[[#This Row],[DET]]))),tblProcessFMEA[[#This Row],[SEV]]*tblProcessFMEA[[#This Row],[OCC]]*tblProcessFMEA[[#This Row],[DET]],-1)","v":-1},null,null,null,null,null,null,{"$f":"IF(AND(NOT(ISBLANK(tblProcessFMEA[[#This Row],[SEV.F]])),NOT(ISBLANK(tblProcessFMEA[[#This Row],[OCC.F]])),NOT(ISBLANK(tblProcessFMEA[[#This Row],[DET.F]]))),tblProcessFMEA[[#This Row],[SEV.F]]*tblProcessFMEA[[#This Row],[OCC.F]]*tblProcessFMEA[[#This Row],[DET.F]],-1)","v":-1}]
[null,null,null,null,null,null,null,null,null,{"$f":"IF(AND(NOT(ISBLANK(tblProcessFMEA[[#This Row],[SEV]])),NOT(ISBLANK(tblProcessFMEA[[#This Row],[OCC]])),NOT(ISBLANK(tblProcessFMEA[[#This Row],[DET]]))),tblProcessFMEA[[#This Row],[SEV]]*tblProcessFMEA[[#This Row],[OCC]]*tblProcessFMEA[[#This Row],[DET]],-1)","v":-1},null,null,null,null,null,null,{"$f":"IF(AND(NOT(ISBLANK(tblProcessFMEA[[#This Row],[SEV.F]])),NOT(ISBLANK(tblProcessFMEA[[#This Row],[OCC.F]])),NOT(ISBLANK(tblProcessFMEA[[#This Row],[DET.F]]))),tblProcessFMEA[[#This Row],[SEV.F]]*tblProcessFMEA[[#This Row],[OCC.F]]*tblProcessFMEA[[#This Row],[DET.F]],-1)","v":-1}]
[null,null,null,null,null,null,null,null,null,{"$f":"IF(AND(NOT(ISBLANK(tblProcessFMEA[[#This Row],[SEV]])),NOT(ISBLANK(tblProcessFMEA[[#This Row],[OCC]])),NOT(ISBLANK(tblProcessFMEA[[#This Row],[DET]]))),tblProcessFMEA[[#This Row],[SEV]]*tblProcessFMEA[[#This Row],[OCC]]*tblProcessFMEA[[#This Row],[DET]],-1)","v":-1},null,null,null,null,null,null,{"$f":"IF(AND(NOT(ISBLANK(tblProcessFMEA[[#This Row],[SEV.F]])),NOT(ISBLANK(tblProcessFMEA[[#This Row],[OCC.F]])),NOT(ISBLANK(tblProcessFMEA[[#This Row],[DET.F]]))),tblProcessFMEA[[#This Row],[SEV.F]]*tblProcessFMEA[[#This Row],[OCC.F]]*tblProcessFMEA[[#This Row],[DET.F]],-1)","v":-1}]
[null,null,null,null,null,null,null,null,null,{"$f":"IF(AND(NOT(ISBLANK(tblProcessFMEA[[#This Row],[SEV]])),NOT(ISBLANK(tblProcessFMEA[[#This Row],[OCC]])),NOT(ISBLANK(tblProcessFMEA[[#This Row],[DET]]))),tblProcessFMEA[[#This Row],[SEV]]*tblProcessFMEA[[#This Row],[OCC]]*tblProcessFMEA[[#This Row],[DET]],-1)","v":-1},null,null,null,null,null,null,{"$f":"IF(AND(NOT(ISBLANK(tblProcessFMEA[[#This Row],[SEV.F]])),NOT(ISBLANK(tblProcessFMEA[[#This Row],[OCC.F]])),NOT(ISBLANK(tblProcessFMEA[[#This Row],[DET.F]]))),tblProcessFMEA[[#This Row],[SEV.F]]*tblProcessFMEA[[#This Row],[OCC.F]]*tblProcessFMEA[[#This Row],[DET.F]],-1)","v":-1}]
[null,null,null,null,null,null,null,null,null,{"$f":"IF(AND(NOT(ISBLANK(tblProcessFMEA[[#This Row],[SEV]])),NOT(ISBLANK(tblProcessFMEA[[#This Row],[OCC]])),NOT(ISBLANK(tblProcessFMEA[[#This Row],[DET]]))),tblProcessFMEA[[#This Row],[SEV]]*tblProcessFMEA[[#This Row],[OCC]]*tblProcessFMEA[[#This Row],[DET]],-1)","v":-1},null,null,null,null,null,null,{"$f":"IF(AND(NOT(ISBLANK(tblProcessFMEA[[#This Row],[SEV.F]])),NOT(ISBLANK(tblProcessFMEA[[#This Row],[OCC.F]])),NOT(ISBLANK(tblProcessFMEA[[#This Row],[DET.F]]))),tblProcessFMEA[[#This Row],[SEV.F]]*tblProcessFMEA[[#This Row],[OCC.F]]*tblProcessFMEA[[#This Row],[DET.F]],-1)","v":-1}]
[null,null,null,null,null,null,null,null,null,{"$f":"IF(AND(NOT(ISBLANK(tblProcessFMEA[[#This Row],[SEV]])),NOT(ISBLANK(tblProcessFMEA[[#This Row],[OCC]])),NOT(ISBLANK(tblProcessFMEA[[#This Row],[DET]]))),tblProcessFMEA[[#This Row],[SEV]]*tblProcessFMEA[[#This Row],[OCC]]*tblProcessFMEA[[#This Row],[DET]],-1)","v":-1},null,null,null,null,null,null,{"$f":"IF(AND(NOT(ISBLANK(tblProcessFMEA[[#This Row],[SEV.F]])),NOT(ISBLANK(tblProcessFMEA[[#This Row],[OCC.F]])),NOT(ISBLANK(tblProcessFMEA[[#This Row],[DET.F]]))),tblProcessFMEA[[#This Row],[SEV.F]]*tblProcessFMEA[[#This Row],[OCC.F]]*tblProcessFMEA[[#This Row],[DET.F]],-1)","v":-1}]
[null,null,null,null,null,null,null,null,null,{"$f":"IF(AND(NOT(ISBLANK(tblProcessFMEA[[#This Row],[SEV]])),NOT(ISBLANK(tblProcessFMEA[[#This Row],[OCC]])),NOT(ISBLANK(tblProcessFMEA[[#This Row],[DET]]))),tblProcessFMEA[[#This Row],[SEV]]*tblProcessFMEA[[#This Row],[OCC]]*tblProcessFMEA[[#This Row],[DET]],-1)","v":-1},null,null,null,null,null,null,{"$f":"IF(AND(NOT(ISBLANK(tblProcessFMEA[[#This Row],[SEV.F]])),NOT(ISBLANK(tblProcessFMEA[[#This Row],[OCC.F]])),NOT(ISBLANK(tblProcessFMEA[[#This Row],[DET.F]]))),tblProcessFMEA[[#This Row],[SEV.F]]*tblProcessFMEA[[#This Row],[OCC.F]]*tblProcessFMEA[[#This Row],[DET.F]],-1)","v":-1}]
[null,null,null,null,null,null,null,null,null,{"$f":"IF(AND(NOT(ISBLANK(tblProcessFMEA[[#This Row],[SEV]])),NOT(ISBLANK(tblProcessFMEA[[#This Row],[OCC]])),NOT(ISBLANK(tblProcessFMEA[[#This Row],[DET]]))),tblProcessFMEA[[#This Row],[SEV]]*tblProcessFMEA[[#This Row],[OCC]]*tblProcessFMEA[[#This Row],[DET]],-1)","v":-1},null,null,null,null,null,null,{"$f":"IF(AND(NOT(ISBLANK(tblProcessFMEA[[#This Row],[SEV.F]])),NOT(ISBLANK(tblProcessFMEA[[#This Row],[OCC.F]])),NOT(ISBLANK(tblProcessFMEA[[#This Row],[DET.F]]))),tblProcessFMEA[[#This Row],[SEV.F]]*tblProcessFMEA[[#This Row],[OCC.F]]*tblProcessFMEA[[#This Row],[DET.F]],-1)","v":-1}]
[null,null,null,null,null,null,null,null,null,{"$f":"IF(AND(NOT(ISBLANK(tblProcessFMEA[[#This Row],[SEV]])),NOT(ISBLANK(tblProcessFMEA[[#This Row],[OCC]])),NOT(ISBLANK(tblProcessFMEA[[#This Row],[DET]]))),tblProcessFMEA[[#This Row],[SEV]]*tblProcessFMEA[[#This Row],[OCC]]*tblProcessFMEA[[#This Row],[DET]],-1)","v":-1},null,null,null,null,null,null,{"$f":"IF(AND(NOT(ISBLANK(tblProcessFMEA[[#This Row],[SEV.F]])),NOT(ISBLANK(tblProcessFMEA[[#This Row],[OCC.F]])),NOT(ISBLANK(tblProcessFMEA[[#This Row],[DET.F]]))),tblProcessFMEA[[#This Row],[SEV.F]]*tblProcessFMEA[[#This Row],[OCC.F]]*tblProcessFMEA[[#This Row],[DET.F]],-1)","v":-1}]
[null,null,null,null,null,null,null,null,null,{"$f":"IF(AND(NOT(ISBLANK(tblProcessFMEA[[#This Row],[SEV]])),NOT(ISBLANK(tblProcessFMEA[[#This Row],[OCC]])),NOT(ISBLANK(tblProcessFMEA[[#This Row],[DET]]))),tblProcessFMEA[[#This Row],[SEV]]*tblProcessFMEA[[#This Row],[OCC]]*tblProcessFMEA[[#This Row],[DET]],-1)","v":-1},null,null,null,null,null,null,{"$f":"IF(AND(NOT(ISBLANK(tblProcessFMEA[[#This Row],[SEV.F]])),NOT(ISBLANK(tblProcessFMEA[[#This Row],[OCC.F]])),NOT(ISBLANK(tblProcessFMEA[[#This Row],[DET.F]]))),tblProcessFMEA[[#This Row],[SEV.F]]*tblProcessFMEA[[#This Row],[OCC.F]]*tblProcessFMEA[[#This Row],[DET.F]],-1)","v":-1}]
[null,null,null,null,null,null,null,null,null,{"$f":"IF(AND(NOT(ISBLANK(tblProcessFMEA[[#This Row],[SEV]])),NOT(ISBLANK(tblProcessFMEA[[#This Row],[OCC]])),NOT(ISBLANK(tblProcessFMEA[[#This Row],[DET]]))),tblProcessFMEA[[#This Row],[SEV]]*tblProcessFMEA[[#This Row],[OCC]]*tblProcessFMEA[[#This Row],[DET]],-1)","v":-1},null,null,null,null,null,null,{"$f":"IF(AND(NOT(ISBLANK(tblProcessFMEA[[#This Row],[SEV.F]])),NOT(ISBLANK(tblProcessFMEA[[#This Row],[OCC.F]])),NOT(ISBLANK(tblProcessFMEA[[#This Row],[DET.F]]))),tblProcessFMEA[[#This Row],[SEV.F]]*tblProcessFMEA[[#This Row],[OCC.F]]*tblProcessFMEA[[#This Row],[DET.F]],-1)","v":-1}]
[null,null,null,null,null,null,null,null,null,{"$f":"IF(AND(NOT(ISBLANK(tblProcessFMEA[[#This Row],[SEV]])),NOT(ISBLANK(tblProcessFMEA[[#This Row],[OCC]])),NOT(ISBLANK(tblProcessFMEA[[#This Row],[DET]]))),tblProcessFMEA[[#This Row],[SEV]]*tblProcessFMEA[[#This Row],[OCC]]*tblProcessFMEA[[#This Row],[DET]],-1)","v":-1},null,null,null,null,null,null,{"$f":"IF(AND(NOT(ISBLANK(tblProcessFMEA[[#This Row],[SEV.F]])),NOT(ISBLANK(tblProcessFMEA[[#This Row],[OCC.F]])),NOT(ISBLANK(tblProcessFMEA[[#This Row],[DET.F]]))),tblProcessFMEA[[#This Row],[SEV.F]]*tblProcessFMEA[[#This Row],[OCC.F]]*tblProcessFMEA[[#This Row],[DET.F]],-1)","v":-1}]
[null,null,null,null,null,null,null,null,null,{"$f":"IF(AND(NOT(ISBLANK(tblProcessFMEA[[#This Row],[SEV]])),NOT(ISBLANK(tblProcessFMEA[[#This Row],[OCC]])),NOT(ISBLANK(tblProcessFMEA[[#This Row],[DET]]))),tblProcessFMEA[[#This Row],[SEV]]*tblProcessFMEA[[#This Row],[OCC]]*tblProcessFMEA[[#This Row],[DET]],-1)","v":-1},null,null,null,null,null,null,{"$f":"IF(AND(NOT(ISBLANK(tblProcessFMEA[[#This Row],[SEV.F]])),NOT(ISBLANK(tblProcessFMEA[[#This Row],[OCC.F]])),NOT(ISBLANK(tblProcessFMEA[[#This Row],[DET.F]]))),tblProcessFMEA[[#This Row],[SEV.F]]*tblProcessFMEA[[#This Row],[OCC.F]]*tblProcessFMEA[[#This Row],[DET.F]],-1)","v":-1}]
[null,null,null,null,null,null,null,null,null,{"$f":"IF(AND(NOT(ISBLANK(tblProcessFMEA[[#This Row],[SEV]])),NOT(ISBLANK(tblProcessFMEA[[#This Row],[OCC]])),NOT(ISBLANK(tblProcessFMEA[[#This Row],[DET]]))),tblProcessFMEA[[#This Row],[SEV]]*tblProcessFMEA[[#This Row],[OCC]]*tblProcessFMEA[[#This Row],[DET]],-1)","v":-1},null,null,null,null,null,null,{"$f":"IF(AND(NOT(ISBLANK(tblProcessFMEA[[#This Row],[SEV.F]])),NOT(ISBLANK(tblProcessFMEA[[#This Row],[OCC.F]])),NOT(ISBLANK(tblProcessFMEA[[#This Row],[DET.F]]))),tblProcessFMEA[[#This Row],[SEV.F]]*tblProcessFMEA[[#This Row],[OCC.F]]*tblProcessFMEA[[#This Row],[DET.F]],-1)","v":-1}]
[null,null,null,null,null,null,null,null,null,{"$f":"IF(AND(NOT(ISBLANK(tblProcessFMEA[[#This Row],[SEV]])),NOT(ISBLANK(tblProcessFMEA[[#This Row],[OCC]])),NOT(ISBLANK(tblProcessFMEA[[#This Row],[DET]]))),tblProcessFMEA[[#This Row],[SEV]]*tblProcessFMEA[[#This Row],[OCC]]*tblProcessFMEA[[#This Row],[DET]],-1)","v":-1},null,null,null,null,null,null,{"$f":"IF(AND(NOT(ISBLANK(tblProcessFMEA[[#This Row],[SEV.F]])),NOT(ISBLANK(tblProcessFMEA[[#This Row],[OCC.F]])),NOT(ISBLANK(tblProcessFMEA[[#This Row],[DET.F]]))),tblProcessFMEA[[#This Row],[SEV.F]]*tblProcessFMEA[[#This Row],[OCC.F]]*tblProcessFMEA[[#This Row],[DET.F]],-1)","v":-1}]
[null,null,null,null,null,null,null,null,null,{"$f":"IF(AND(NOT(ISBLANK(tblProcessFMEA[[#This Row],[SEV]])),NOT(ISBLANK(tblProcessFMEA[[#This Row],[OCC]])),NOT(ISBLANK(tblProcessFMEA[[#This Row],[DET]]))),tblProcessFMEA[[#This Row],[SEV]]*tblProcessFMEA[[#This Row],[OCC]]*tblProcessFMEA[[#This Row],[DET]],-1)","v":-1},null,null,null,null,null,null,{"$f":"IF(AND(NOT(ISBLANK(tblProcessFMEA[[#This Row],[SEV.F]])),NOT(ISBLANK(tblProcessFMEA[[#This Row],[OCC.F]])),NOT(ISBLANK(tblProcessFMEA[[#This Row],[DET.F]]))),tblProcessFMEA[[#This Row],[SEV.F]]*tblProcessFMEA[[#This Row],[OCC.F]]*tblProcessFMEA[[#This Row],[DET.F]],-1)","v":-1}]
[null,null,null,null,null,null,null,null,null,{"$f":"IF(AND(NOT(ISBLANK(tblProcessFMEA[[#This Row],[SEV]])),NOT(ISBLANK(tblProcessFMEA[[#This Row],[OCC]])),NOT(ISBLANK(tblProcessFMEA[[#This Row],[DET]]))),tblProcessFMEA[[#This Row],[SEV]]*tblProcessFMEA[[#This Row],[OCC]]*tblProcessFMEA[[#This Row],[DET]],-1)","v":-1},null,null,null,null,null,null,{"$f":"IF(AND(NOT(ISBLANK(tblProcessFMEA[[#This Row],[SEV.F]])),NOT(ISBLANK(tblProcessFMEA[[#This Row],[OCC.F]])),NOT(ISBLANK(tblProcessFMEA[[#This Row],[DET.F]]))),tblProcessFMEA[[#This Row],[SEV.F]]*tblProcessFMEA[[#This Row],[OCC.F]]*tblProcessFMEA[[#This Row],[DET.F]],-1)","v":-1}]
[null,null,null,null,null,null,null,null,null,{"$f":"IF(AND(NOT(ISBLANK(tblProcessFMEA[[#This Row],[SEV]])),NOT(ISBLANK(tblProcessFMEA[[#This Row],[OCC]])),NOT(ISBLANK(tblProcessFMEA[[#This Row],[DET]]))),tblProcessFMEA[[#This Row],[SEV]]*tblProcessFMEA[[#This Row],[OCC]]*tblProcessFMEA[[#This Row],[DET]],-1)","v":-1},null,null,null,null,null,null,{"$f":"IF(AND(NOT(ISBLANK(tblProcessFMEA[[#This Row],[SEV.F]])),NOT(ISBLANK(tblProcessFMEA[[#This Row],[OCC.F]])),NOT(ISBLANK(tblProcessFMEA[[#This Row],[DET.F]]))),tblProcessFMEA[[#This Row],[SEV.F]]*tblProcessFMEA[[#This Row],[OCC.F]]*tblProcessFMEA[[#This Row],[DET.F]],-1)","v":-1}]
[null,null,null,null,null,null,null,null,null,{"$f":"IF(AND(NOT(ISBLANK(tblProcessFMEA[[#This Row],[SEV]])),NOT(ISBLANK(tblProcessFMEA[[#This Row],[OCC]])),NOT(ISBLANK(tblProcessFMEA[[#This Row],[DET]]))),tblProcessFMEA[[#This Row],[SEV]]*tblProcessFMEA[[#This Row],[OCC]]*tblProcessFMEA[[#This Row],[DET]],-1)","v":-1},null,null,null,null,null,null,{"$f":"IF(AND(NOT(ISBLANK(tblProcessFMEA[[#This Row],[SEV.F]])),NOT(ISBLANK(tblProcessFMEA[[#This Row],[OCC.F]])),NOT(ISBLANK(tblProcessFMEA[[#This Row],[DET.F]]))),tblProcessFMEA[[#This Row],[SEV.F]]*tblProcessFMEA[[#This Row],[OCC.F]]*tblProcessFMEA[[#This Row],[DET.F]],-1)","v":-1}]
[null,null,null,null,null,null,null,null,null,{"$f":"IF(AND(NOT(ISBLANK(tblProcessFMEA[[#This Row],[SEV]])),NOT(ISBLANK(tblProcessFMEA[[#This Row],[OCC]])),NOT(ISBLANK(tblProcessFMEA[[#This Row],[DET]]))),tblProcessFMEA[[#This Row],[SEV]]*tblProcessFMEA[[#This Row],[OCC]]*tblProcessFMEA[[#This Row],[DET]],-1)","v":-1},null,null,null,null,null,null,{"$f":"IF(AND(NOT(ISBLANK(tblProcessFMEA[[#This Row],[SEV.F]])),NOT(ISBLANK(tblProcessFMEA[[#This Row],[OCC.F]])),NOT(ISBLANK(tblProcessFMEA[[#This Row],[DET.F]]))),tblProcessFMEA[[#This Row],[SEV.F]]*tblProcessFMEA[[#This Row],[OCC.F]]*tblProcessFMEA[[#This Row],[DET.F]],-1)","v":-1}]
[null,null,null,null,null,null,null,null,null,{"$f":"IF(AND(NOT(ISBLANK(tblProcessFMEA[[#This Row],[SEV]])),NOT(ISBLANK(tblProcessFMEA[[#This Row],[OCC]])),NOT(ISBLANK(tblProcessFMEA[[#This Row],[DET]]))),tblProcessFMEA[[#This Row],[SEV]]*tblProcessFMEA[[#This Row],[OCC]]*tblProcessFMEA[[#This Row],[DET]],-1)","v":-1},null,null,null,null,null,null,{"$f":"IF(AND(NOT(ISBLANK(tblProcessFMEA[[#This Row],[SEV.F]])),NOT(ISBLANK(tblProcessFMEA[[#This Row],[OCC.F]])),NOT(ISBLANK(tblProcessFMEA[[#This Row],[DET.F]]))),tblProcessFMEA[[#This Row],[SEV.F]]*tblProcessFMEA[[#This Row],[OCC.F]]*tblProcessFMEA[[#This Row],[DET.F]],-1)","v":-1}]